Workbook

Sheet RANKING 2017
A1: RANKING NACIONAL DE ENDURANCE ECUADOR 2018
A3: CATEGORÍA ELITE ABIERTA
C4: JINETE | D4: PUNTAJE
A5: 1 | B5: CAMPEÓN NACIONAL | C5: =+'ELITE ABIERTA'!D8 -> ALMEIDA AYALA HECTOR | D5: =+'ELITE ABIERTA'!Q8 -> 1160.8
A6: 2 | B6: VICECAMPEÓN NACIONAL | C6: =+'ELITE ABIERTA'!D9 -> VINTIMILLA PABLO | D6: =+'ELITE ABIERTA'!Q9 -> 1041.95
A7: 3 | C7: =+'ELITE ABIERTA'!D10 -> ANDRADE JOSE DANIEL | D7: =+'ELITE ABIERTA'!Q10 -> 1021.68
A8: 4 | C8: =+'ELITE ABIERTA'!D11 -> WEEMAELS NATHALIE | D8: =+'ELITE ABIERTA'!Q11 -> 668.02
A9: 5 | C9: =+'ELITE ABIERTA'!D12 -> LOZADA JOSE ARMANDO | D9: =+'ELITE ABIERTA'!Q12 -> 573.66
A11: CATEGORÍA ELITE JUVENIL
C12: JINETE | D12: PUNTAJE
A13: 1 | B13: CAMPEÓN NACIONAL | C13: =+'ELITE JUVENIL'!D8 -> GONZALEZ BERNARDA | D13: =+'ELITE JUVENIL'!Q8 -> 890.6
A14: 2 | B14: VICECAMPEÓN NACIONAL | C14: =+'ELITE JUVENIL'!D9 -> LOYOLA TEODORO ANDRES | D14: =+'ELITE JUVENIL'!Q9 -> 527.2
A15: 3 | C15: =+'ELITE JUVENIL'!D10 -> MASAPANTA LUIS | D15: =+'ELITE JUVENIL'!Q10 -> 418.128
A16: 4 | C16: =+'ELITE JUVENIL'!D11 -> MORABOWEN MOSQUERA CESAR | D16: =+'ELITE JUVENIL'!Q11 -> 314
A17: 5 | C17: =+'ELITE JUVENIL'!D12 -> MASAPANTA KEVIN | D17: =+'ELITE JUVENIL'!Q12 -> 128.8
A20: CATEGORÍA ELITE CABALLOS
C21: JINETE | D21: JINETE/DUEÑO | E21: PUNTAJE
A22: 1 | B22: CAMPEÓN NACIONAL | C22: =+'ELITE CABALLOS'!D8 -> MARAVILLA | D22: =+'ELITE CABALLOS'!E8 -> HECTOR ALMEIDA AYALA | E22: =+'ELITE CABALLOS'!R8 -> 564.8
A23: 2 | B23: VICECAMPEÓN NACIONAL | C23: =+'ELITE CABALLOS'!D9 -> MANDY CMB | D23: =+'ELITE CABALLOS'!E9 -> MORABOWEN CESAR | E23: =+'ELITE CABALLOS'!R9 -> 474.2
A24: 3 | C24: =+'ELITE CABALLOS'!D10 -> SUMAYA BD | D24: =+'ELITE CABALLOS'!E10 -> MARIA JOSE HERNANDEZ | E24: =+'ELITE CABALLOS'!R10 -> 434.55
A25: 4 | C25: =+'ELITE CABALLOS'!D11 -> SA DREAMSHA | D25: =+'ELITE CABALLOS'!E11 -> FELIPE ANDRADE | E25: =+'ELITE CABALLOS'!R11 -> 423.68
A26: 5 | C26: =+'ELITE CABALLOS'!D12 -> JUGUETE | D26: =+'ELITE CABALLOS'!E12 -> LOYOLA TEODORO ANDRES | E26: =+'ELITE CABALLOS'!R12 -> 407.2
A28: CATEGORÍA BINOMIOS ABIERTA
C29: JINETE | D29: CABALLO | E29: PUNTAJE
A30: 1 | B30: CAMPEÓN NACIONAL | C30: =+'BINOMIOS ABIERTA'!D8 -> ALMEIDA AYALA HECTOR | D30: =+'BINOMIOS ABIERTA'!F8 -> MARAVILLA | E30: =+'BINOMIOS ABIERTA'!S8 -> 564.8
A31: 2 | B31: VICECAMPEÓN NACIONAL | C31: =+'BINOMIOS ABIERTA'!D9 -> ANDRADE JOSE DANIEL | D31: =+'BINOMIOS ABIERTA'!F9 -> QUITA PENAS | E31: =+'BINOMIOS ABIERTA'!S9 -> 406
A32: 3 | C32: =+'BINOMIOS ABIERTA'!D10 -> HERNANDEZ MARÍA JOSÉ | D32: =+'BINOMIOS ABIERTA'!F10 -> SUMAYA BD | E32: =+'BINOMIOS ABIERTA'!S10 -> 405.67
A33: 4 | C33: =+'BINOMIOS ABIERTA'!D11 -> VINTIMILLA PABLO | D33: =+'BINOMIOS ABIERTA'!F11 -> BIANCA | E33: =+'BINOMIOS ABIERTA'!S11 -> 403.3
A34: 5 | C34: =+'BINOMIOS ABIERTA'!D12 -> GONZALEZ XIMENA | D34: =+'BINOMIOS ABIERTA'!F12 -> BERNARDA | E34: =+'BINOMIOS ABIERTA'!S12 -> 400.8
A36: CATEGORÍA BINOMIOS LIVIANOS
C37: JINETE | D37: CABALLO | E37: PUNTAJE
A38: 1 | B38: CAMPEÓN NACIONAL | C38: =+'BINOMIOS LIVIANOS'!D8 -> ANDRADE FELIPE ANDRES | D38: =+'BINOMIOS LIVIANOS'!F8 -> MUNIRAH | E38: =+'BINOMIOS LIVIANOS'!S8 -> 608.8
A39: 2 | B39: VICECAMPEÓN NACIONAL | C39: =+'BINOMIOS LIVIANOS'!D9 -> LOYOLA TEODORO ANDRES | D39: =+'BINOMIOS LIVIANOS'!F9 -> JUGUETE | E39: =+'BINOMIOS LIVIANOS'!S9 -> 527.2
A40: 3 | C40: =+'BINOMIOS LIVIANOS'!D10 -> GONZALEZ BERNARDA | D40: =+'BINOMIOS LIVIANOS'!F10 -> POLACO | E40: =+'BINOMIOS LIVIANOS'!S10 -> 401
A41: 4 | C41: =+'BINOMIOS LIVIANOS'!D11 -> SALTOS JUAN XAVIER | D41: =+'BINOMIOS LIVIANOS'!F11 -> SAHIRA | E41: =+'BINOMIOS LIVIANOS'!S11 -> 374.4
A42: 5 | C42: =+'BINOMIOS LIVIANOS'!D12 -> GONZALEZ BERNARDA | D42: =+'BINOMIOS LIVIANOS'!F12 -> TEQUILA | E42: =+'BINOMIOS LIVIANOS'!S12 -> 329.6
A44: CATEGORÍA AMATEUR ABIERTA
C45: JINETE | D45: PUNTAJE
A46: 1 | B46: CAMPEÓN NACIONAL | C46: =+'AMATEUR ABIERTA'!D8 -> ANDRADE JUAN CARLOS | D46: =+'AMATEUR ABIERTA'!Q8 -> 599.04
A47: 2 | B47: VICECAMPEÓN NACIONAL | C47: =+'AMATEUR ABIERTA'!D9 -> GONZALEZ JERVES XIMENA | D47: =+'AMATEUR ABIERTA'!Q9 -> 596.56
A48: 3 | C48: =+'AMATEUR ABIERTA'!D10 -> MENDOZA KLARIZA | D48: =+'AMATEUR ABIERTA'!Q10 -> 250.04
A49: 4 | C49: =+'AMATEUR ABIERTA'!D11 -> DIEGO CASTILLO | D49: =+'AMATEUR ABIERTA'!Q11 -> 247.36
A50: 5 | C50: =+'AMATEUR ABIERTA'!D12 -> AGUAYO JUAN PABLO | D50: =+'AMATEUR ABIERTA'!Q12 -> 238.84
A52: CATEGORÍA AMATEUR JUVENIL
C53: JINETE | D53: PUNTAJE
A54: 1 | B54: CAMPEÓN NACIONAL | C54: =+'AMATEUR JUVENIL'!D8 -> DAVALOS JORGE EDUARDO | D54: =+'AMATEUR JUVENIL'!Q8 -> 384
A55: 2 | B55: VICECAMPEÓN NACIONAL | C55: =+'AMATEUR JUVENIL'!D9 -> SALTOS JUAN XAVIER | D55: =+'AMATEUR JUVENIL'!Q9 -> 374.4
A56: 3 | C56: =+'AMATEUR JUVENIL'!D10 -> LOYOLA LEONARDO | D56: =+'AMATEUR JUVENIL'!Q10 -> 322.88
A57: 4 | C57: =+'AMATEUR JUVENIL'!D11 -> TORRES GIORDANO | D57: =+'AMATEUR JUVENIL'!Q11 -> 294.24
A58: 5 | C58: =+'AMATEUR JUVENIL'!D12 -> MORENO PAULINA | D58: =+'AMATEUR JUVENIL'!Q12 -> 236.48
A60: CATEGORÍA AMATEUR MENORES
C61: JINETE | D61: PUNTAJE
A62: 1 | B62: CAMPEÓN NACIONAL | C62: =+'AMATEUR MENORES'!D8 -> ANDRADE FELIPE ANDRES | D62: =+'AMATEUR MENORES'!Q8 -> 873.92
A63: 2 | B63: VICECAMPEÓN NACIONAL | C63: =+'AMATEUR MENORES'!D9 -> CARRERA BRUNO | D63: =+'AMATEUR MENORES'!Q9 -> 532.6
A64: 3 | C64: =+'AMATEUR MENORES'!D10 -> CARRERA CAMILA | D64: =+'AMATEUR MENORES'!Q10 -> 505.44
A65: 4 | C65: =+'AMATEUR MENORES'!D11 -> LOPEZ JUAN RAFAEL | D65: =+'AMATEUR MENORES'!Q11 -> 0
A66: 5 | C66: =+'AMATEUR MENORES'!D12 -> DONOSO JULIAN | D66: =+'AMATEUR MENORES'!Q12 -> 0
A68: CATEGORÍA NOVICIOS CABALLOS
C69: JINETE | D69: JINETE/DUEÑO | E69: PUNTAJE
A70: 1 | B70: CAMPEÓN NACIONAL | C70: =+'CABALLOS NOVICIOS'!D8 -> MUNIRAH | D70: =+'CABALLOS NOVICIOS'!E8 -> FELIPE ANDRADE | E70: =+'CABALLOS NOVICIOS'!R8 -> 608.8
A71: 2 | B71: VICECAMPEÓN NACIONAL | C71: =+'CABALLOS NOVICIOS'!D9 -> BERNARDA | D71: =+'CABALLOS NOVICIOS'!E9 -> XIMENA GONZALEZ | E71: =+'CABALLOS NOVICIOS'!R9 -> 400.8
A72: 3 | C72: =+'CABALLOS NOVICIOS'!D10 -> SIMBA | D72: =+'CABALLOS NOVICIOS'!E10 -> MARIA CONSUELO VELEZ MENA | E72: =+'CABALLOS NOVICIOS'!R10 -> 387.84
A73: 4 | C73: =+'CABALLOS NOVICIOS'!D11 -> PAVITA | D73: =+'CABALLOS NOVICIOS'!E11 -> JUAN CARLOS ANDRADE | E73: =+'CABALLOS NOVICIOS'!R11 -> 380.84
A74: 5 | C74: =+'CABALLOS NOVICIOS'!D12 -> ABIGAIL | D74: =+'CABALLOS NOVICIOS'!E12 -> GONZALEZ SEBASTIAN | E74: =+'CABALLOS NOVICIOS'!R12 -> 380.64
A76: CAMPEONATO DE EQUIPOS
C77: EQUIPO | D77: CAPITAN | E77: PUNTAJE | F77: JINETES
A78: 1 | B78: CAMPEÓN NACIONAL | C78: =+EQUIPOS!C8 -> SEGUROS EQUINOCCIAL | D78: =+EQUIPOS!D8 -> BERNARDO DARQUEA | E78: =+EQUIPOS!U8 -> 1037.16 | F78: =+EQUIPOS!E8 -> MARÍA JOSÉ HERNANDEZ | G78: =+EQUIPOS!F8 -> RICARDO DARQUEA | H78: =+EQUIPOS!G8 -> EMILIO DARQUEA | I78: =+EQUIPOS!H8 -> JUAN JOSÉ RECALDE | J78: =+EQUIPOS!I8 -> GABRIEL DARQUEA | K78: =+EQUIPOS!J8 -> ANDRES DARQUEA
A79: 2 | B79: VICECAMPEÓN NACIONAL | C79: =+EQUIPOS!C9 -> SELECT | D79: =+EQUIPOS!D9 -> ARMANDO SERRANO | E79: =+EQUIPOS!U9 -> 1017.8 | F79: =+EQUIPOS!E9 -> MANUELA JARAMILLO | G79: =+EQUIPOS!F9 -> JOSÉ DANIEL ANDRADE | H79: =+EQUIPOS!G9 -> JOSE LETORT MENA | I79: =+EQUIPOS!H9 -> ARMANDO SERRANO | J79: =+EQUIPOS!I9 -> FELIPE ANDRÉS ANDRADE | K79: =+EQUIPOS!J9 -> BERNARDA LETORT
A80: 3 | C80: =+EQUIPOS!C10 -> CACHAFAZ ENDURANCE | D80: =+EQUIPOS!D10 -> ARTURO RIBADENEIRA | E80: =+EQUIPOS!U10 -> 815.37 | F80: =+EQUIPOS!E10 -> MARIA EMILIA BARAHONA | G80: =+EQUIPOS!F10 -> KLARIZA MENDOZA | H80: =+EQUIPOS!G10 -> MARIA CECILIA ALZAMORA | I80: =+EQUIPOS!H10 -> CARLOS DAVALOS | J80: =+EQUIPOS!I10 -> JUAN CARLOS ANDRADE | K80: =+EQUIPOS!J10 -> ARTURO RIBADENEIRA
A82: CATEGORÍA PROMOCIONAL ABIERTA
C83: JINETE | D83: PUNTAJE
A84: 1 | B84: CAMPEÓN NACIONAL | C84: =+'PR GENERAL'!D8 -> MONCAYO CALERO FERNANDO | D84: =+'PR GENERAL'!O8 -> 284.072
A85: 2 | B85: VICECAMPEÓN NACIONAL | C85: =+'PR GENERAL'!D9 -> DÁVALOS CARLOS MANUEL | D85: =+'PR GENERAL'!O9 -> 134.744
A86: 3 | C86: =+'PR GENERAL'!D10 -> ESTRADA CARLOS | D86: =+'PR GENERAL'!O10 -> 117.184
A87: 4 | C87: =+'PR GENERAL'!D11 -> ESPINOSA JUAN FERNANDO | D87: =+'PR GENERAL'!O11 -> 113.12
A88: 5 | C88: =+'PR GENERAL'!D12 -> JULIÁN FLORES | D88: =+'PR GENERAL'!O12 -> 97.76
A90: CATEGORÍA PROMOCIONAL JUVENIL
C91: JINETE | D91: PUNTAJE
A92: 1 | B92: CAMPEÓN NACIONAL | C92: =+'PR JUVENIL'!D8 -> NOROÑA JORDAN | D92: =+'PR JUVENIL'!O8 -> 68.8
A93: 2 | B93: VICECAMPEÓN NACIONAL | C93: =+'PR JUVENIL'!D9 -> GABRIEL DARQUEA | D93: =+'PR JUVENIL'!O9 -> 68.8
A94: 3 | C94: =+'PR JUVENIL'!D10 -> BARBARA ESPINOZA | D94: =+'PR JUVENIL'!O10 -> 65.36
A95: 4 | C95: =+'PR JUVENIL'!D11 -> JHON CANDELEJO | D95: =+'PR JUVENIL'!O11 -> 32
A96: 5 | C96: =+'PR JUVENIL'!D12 -> 0 | D96: =+'PR JUVENIL'!O12 -> 0
A98: CATEGORÍA PROMOCIONAL MENORES
C99: JINETE | D99: PUNTAJE
A100: 1 | B100: CAMPEÓN NACIONAL | C100: =+'PR MENORES'!D8 -> CORREA JUAN MARTIN | D100: =+'PR MENORES'!O8 -> 60.8
A101: 2 | B101: VICECAMPEÓN NACIONAL | C101: =+'PR MENORES'!D9 -> ESPINOZA NATALIA | D101: =+'PR MENORES'!O9 -> 58.176
A102: 3 | C102: =+'PR MENORES'!D10 -> CASTILLO DAFNE | D102: =+'PR MENORES'!O10 -> 32
A103: 4
A104: 5
A106: CATEGORÍA PROMOCIONAL INFANTIL
C107: JINETE | D107: PUNTAJE
A108: 1 | B108: CAMPEÓN NACIONAL | C108: =+'PR INFANTIL'!D8 -> BARAHONA MARIA EMILIA | D108: =+'PR INFANTIL'!O8 -> 321.56
A109: 2 | B109: VICECAMPEÓN NACIONAL | C109: =+'PR INFANTIL'!D9 -> NOBOA JULIAN | D109: =+'PR INFANTIL'!O9 -> 80.64
A110: 3 | C110: =+'PR INFANTIL'!D10 -> EMILIO DARQUEA | D110: =+'PR INFANTIL'!O10 -> 65.44
A111: 4 | C111: =+'PR INFANTIL'!D11 -> CARRERA CAMILA | D111: =+'PR INFANTIL'!O11 -> 25.6
A112: 5
A114: CATEGORÍA PROMOCIONAL ADULTO/MENOR
C115: MENOR | D115: PUNTAJE
A116: 1 | B116: CAMPEÓN NACIONAL | C116: =+'PR ADULTO-MENOR'!C8 -> CASTILLO DAFNE | D116: =+'PR ADULTO-MENOR'!O8 -> 64.64
A117: 2 | B117: VICECAMPEÓN NACIONAL | C117: =+'PR ADULTO-MENOR'!C9 -> SERRANO OLIVIA | D117: =+'PR ADULTO-MENOR'!O9 -> 63.184
A118: 3 | C118: =+'PR ADULTO-MENOR'!C10 -> JARA RAFAELA | D118: =+'PR ADULTO-MENOR'!O10 -> 32.32
A119: 4 | C119: =+'PR ADULTO-MENOR'!C11 -> MOYA MARTINA | D119: =+'PR ADULTO-MENOR'!O11 -> 32
A120: 5 | C120: =+'PR ADULTO-MENOR'!C12 -> CORREA DAVID | D120: =+'PR ADULTO-MENOR'!O12 -> 29.232

Sheet CAMPEONES 2018
B2: CAMPEONATO ECUATORIANO DE ENDURANCE
B4: CATEGORÍA ELITE ABIERTA CHASQUI 3
D5: JINETE | E5: CABALLO
B6: 1 | C6: CAMPEÓN NACIONAL | D6: ALMEIDA HECTOR | E6: MARAVILLA
B7: 2 | C7: VICECAMPEÓN NACIONAL
B8: 3
B9: 4
B11: CATEGORÍA ELITE JUVENIL CHASQUI 3
D12: JINETE | E12: CABALLO
B13: 1 | C13: CAMPEÓN NACIONAL
B14: 2 | C14: VICECAMPEÓN NACIONAL
B15: 3
B17: CATEGORÍA ELITE ABIERTA CHASQUI 2
D18: JINETE | E18: CABALLO
B19: 1 | C19: CAMPEÓN NACIONAL | D19: JOSE DANIEL ANDRADE | E19: S A DREAMSHA
B20: 2 | C20: VICECAMPEÓN NACIONAL | D20: ANDRES DARQUEA | E20: NABU
B21: 3 | D21: ARMANDO SERRANO | E21: MD YALA
B23: CATEGORÍA ELITE JUVENIL CHASQUI 2
D24: JINETE | E24: CABALLO
B25: 1 | C25: CAMPEÓN NACIONAL | D25: BERNARDA GONZALEZ | E25: ASRAEL
B26: 2 | C26: VICECAMPEÓN NACIONAL | D26: CESAR MORABOWEN MOSQUERA | E26: MANDY CMB
B27: 3
B29: CATEGORÍA ELITE JUVENIL CHASQUI 2
D30: JINETE | E30: CABALLO
B31: 1 | C31: CAMPEÓN NACIONAL | D31: ANDRADE FELIPE ANDRES | E31: MUNIRAH
B32: 2 | C32: VICECAMPEÓN NACIONAL | D32: BRUNO CARREA | E32: KARISMA VO
B33: 3
B35: CATEGORÍA ABIERTA CHASQUI 1
D36: JINETE | E36: CABALLO
B37: 1 | C37: CAMPEÓN NACIONAL | D37: CLARA MENDOZA | E37: ANGOSTURA FRODO
B38: 2 | C38: VICECAMPEÓN NACIONAL
B39: 3
B41: CATEGORÍA MENORES CHASQUI 1
D42: JINETE | E42: CABALLO
B43: 1 | C43: CAMPEÓN NACIONAL | D43: EMILIO DARQUEA | E43: ALI
B44: 2 | C44: VICECAMPEÓN NACIONAL
B45: 3
B47: CATEGORÍA ABIERTA CHASQUI 1
D48: JINETE | E48: CABALLO
B49: 1 | C49: CAMPEÓN NACIONAL
B50: 2 | C50: VICECAMPEÓN NACIONAL
B51: 3
B53: CATEGORÍA JUVENIL CHASQUI 1
D54: JINETE | E54: CABALLO
B55: 1 | C55: CAMPEÓN NACIONAL
B56: 2 | C56: VICECAMPEÓN NACIONAL
B57: 3

Sheet SUPER CHASQUI (hidden)
C2: PREMIO SUPER CHASQUI DE ENDURANCE
B4: SUPER CHASQUI 3 JINETES (3000 Km)
C5: JINETE
B6: 1 | C6: ALMEIDA AYALA HECTOR | D6: 3732
B7: 2 | C7: ANDRADE JOSE DANIEL | D7: 3055
B8: 3
B10: SUPER CHASQUI 3 CABALLOS
C11: JINETE | D11: CABALLO
B12: 1
B13: 2
B14: 3
B16: SUPER CHASQUI 3 BINOMIOS
C17: JINETE | D17: CABALLO
B18: 1
B19: 2
B20: 3
B22: SUPER CHASQUI 2 JINETES (2000 Km)
C23: JINETE | D23: KILOMETRAJE
C24: RIBADENEIRA SOFIA | D24: 2967
C25: WEEMAELS NATHALIE | D25: 2957
C26: GONZALEZ BERNARDA | D26: 2944
C27: LETORT DUEÑAS BERNARDA | D27: 2546
C28: RECALDE JUAN JOSE | D28: 2353
C29: MORILLO MAURICIO | D29: 2232
C30: MORABOWEN CESAR | D30: 2209
C31: RIBADENEIRA ARTURO | D31: 2190
C32: NEUMANN KARINA | D32: 2108
C33: GOMEZ MICHILENA ALEXANDER | D33: 2085
C34: LOYOLA VINTIMILLA MARIA CLAUDIA | D34: 2020
B38: SUPER CHASQUI 2 CABALLOS (2000 Km)
C39: JINETE | D39: PROPIETARIO/JINETE | E39: KILOMETRAJE
B40: 1 | C40: AR FAISAN | D40: ARTURO RIBADENEIRA | E40: 2117
B41: 2
B42: 3
B44: SUPER CHASQUI 2 BINOMIOS (2000 Km)
C45: JINETE | D45: KILOMETRAJE
B46: 1
B47: 2
B48: 3
B50: SUPER CHASQUI 1 JINETES (1000 Km)
C51: JINETE | D51: KILOMETRAJE
B52: 1 | C52: DARQUEA RAFAELA | D52: 1980
B53: 2 | C53: VINTIMILLA SERRANO PABLO XAVIER | D53: 1955
B54: 3 | C54: GUARDERAS BARAHONA SEBASTIAN | D54: 1943
B55: 4 | C55: NOBOA MAURICIO | D55: 1672
B56: 5 | C56: SERRANO VALLEJO FELIPE | D56: 1579
B57: 6 | C57: MORENO CORDOVEZ DANIELA | D57: 1496
B58: 7 | C58: VELEZ MENA MARIA CONSUELO | D58: 1489
B59: 8 | C59: WRAY VINUEZA MATEO | D59: 1474
B60: 9 | C60: MONROY BAROJA MARIA FERNANDA | D60: 1444
B61: 10 | C61: DARQUEA BERNARDO | D61: 1443
B62: 11 | C62: KOPPEL OSWALDO | D62: 1408
B63: 12 | C63: CORNEJO BURNEO MANUEL | D63: 1298
B64: 13 | C64: CANDO MARIO | D64: 1296
B65: 14 | C65: MORILLO SERGIO | D65: 1247
B66: 15 | C66: DAVILA GORDILLO JUAN DIEGO | D66: 1115
B67: 16 | C67: DARQUEA RICARDO | D67: 1084
B68: 17 | C68: LETORT MENA JOSE | D68: 1032
B69: 18
B70: 19
B71: 20
B73: SUPER CHASQUI 1 CABALLOS (1000 Km)
C74: JINETE | D74: PROPIETARIO/JINETE | E74: KILOMETRAJE
B75: 1 | C75: ANGOSTURA FRODO | D75: RIBADENEIRA ARTURO | E75: 1970
B76: 2 | C76: CENTAURO | D76: HECTOR ALMEIDA | E76: 1916
B77: 3 | C77: FHARA CONEJA | D77: DARQUEA BERNARDO | E77: 1807
B78: 4 | C78: BOM BOM | D78: JUAN JOSE RECALDE | E78: 1676
B79: 5 | C79: CG ALLASKI | D79: WEEMAELS NATHALIE | E79: 1604
B80: 6 | C80: MISTERIO | D80: MORILLO MAURICIO | E80: 1572
B81: 7 | C81: QUITA PENAS | D81: ILIANA RUIZ | E81: 1419
B82: 8 | C82: PATACON | D82: LOYOLA VINTIMILLA MARIA CLAUDIA | E82: 1364
B83: 9 | C83: AMARETO | D83: JOSE LETORT | E83: 1239
B84: 10 | C84: ASRAEL | D84: BERNARDA GONZALEZ | E84: 1222
B85: 11 | C85: KAFIR HA | D85: HECTOR ALMEIDA | E85: 1219
B86: 12 | C86: WISKY | D86: MAURICIO NOBOA | E86: 1137
B87: 13 | C87: SERENATA CMB | D87: CÉSAR MORABOWEN | E87: 1091
B88: 14 | C88: AVENTURERO | D88: HECTOR ALMEIDA | E88: 1062
B89: 15 | C89: SHAKIRA | D89: LETORT JOSE IGNACIO | E89: 1023
B90: 16 | C90: TRUENO | D90: DARQUEA BERNARDO | E90: 1011
B91: 17
B92: 18
B93: 19
B94: 20
B95: 21
B96: 22
B97: 23
B98: 24
B99: 25
B101: SUPER CHASQUI 1 BINOMIOS (1000 Km)
C102: JINETE | D102: CABALLO | E102: KILOMETRAJE
B103: 1 | C103: HECTOR ALMEIDA | D103: CENTAURO | E103: 1670
B104: 2 | C104: WEEMAELS NATHALIE | D104: CG ALLASKI | E104: 1600
B105: 3 | C105: MORILLO MAURICIO | D105: MISTERIO | E105: 1458
B106: 4 | C106: DARQUEA BERNARDO | D106: FHARA CONEJA | E106: 1362
B107: 5 | C107: RIBADENEIRA SOFIA | D107: AR FAISAN | E107: 1261
B108: 6 | C108: LOYOLA VINTIMILLA MARIA CLAUDIA | D108: PATACON | E108: 1115
B109: 7
B110: 8
B111: 9
B112: 10
B113: 11
B114: 12
B115: 13

Sheet EQUIPOS
B2: PUNTAJE ACUMULADO
B3: EQUIPOS
B5: EQUIPOS | K5: PUNTAJES
K6: 2018
C7: EQUIPO | D7: CAPITAN | E7: JINETES | K7: II CHONE | L7: III CHONE | M7: V CHONE | N7: VI CHONE | O7: VIII CHONE | P7: XII SÁBADO | Q7: XII DOMINGO | R7: X CHONE | U7: ACUMULADO
B8: 1 | C8: SEGUROS EQUINOCCIAL | D8: BERNARDO DARQUEA | E8: MARÍA JOSÉ HERNANDEZ | F8: RICARDO DARQUEA | G8: EMILIO DARQUEA | H8: JUAN JOSÉ RECALDE | I8: GABRIEL DARQUEA | J8: ANDRES DARQUEA | K8: 313.44 | L8: 321.52 | Q8: 402.2 | U8: =SUM(K8:T8) -> 1037.16
B9: 2 | C9: SELECT | D9: ARMANDO SERRANO | E9: MANUELA JARAMILLO | F9: JOSÉ DANIEL ANDRADE | G9: JOSE LETORT MENA | H9: ARMANDO SERRANO | I9: FELIPE ANDRÉS ANDRADE | J9: BERNARDA LETORT | K9: 553.8 | Q9: 464 | U9: 1017.8
B10: 3 | C10: CACHAFAZ ENDURANCE | D10: ARTURO RIBADENEIRA | E10: MARIA EMILIA BARAHONA | F10: KLARIZA MENDOZA | G10: MARIA CECILIA ALZAMORA | H10: CARLOS DAVALOS | I10: JUAN CARLOS ANDRADE | J10: ARTURO RIBADENEIRA | O10: 251.2 | P10: 278.77 | Q10: 285.4 | U10: 815.37 | AN10: =+$U$8-U9 -> 19.36 | AO10: =VLOOKUP(B10,#REF!,3,FALSE) -> 
B11: 4 | C11: HACIENDA HATO VERDE | D11: CESAR MORABOWEN | E11: MORABOWEN AGUIRRE CESAR | F11: MORABOWEN MOSQUERA CESAR | G11: FRANCISCO FALCONÍ | H11: MARIA ISABEL CALERO | I11: JORGE EDUARDO DAVALOS | J11: SANDRO PEREZ LEON | L11: 424.44 | Q11: 337.44 | U11: 761.88
B12: 5 | C12: AL GALOPE | D12: HÉCTOR ALMEIDA | E12: PABLO VINTIMILLA | F12: BERNARDA GONZÁLEZ | G12: MIGUEL ANGEL MOYA | H12: DANILO MONCAYO | I12: ALEXANDER GÓMEZ | J12: HÉCTOR ALMEIDA | N12: 630.95 | U12: 630.95
B13: 6 | C13: WM ENDURANCE TEAM | D13: PATRICK MORMAL | E13: NATHALIE WEEMAELS | F13: LUIS RUBIO | G13: PATRICIA GUERRA | H13: JUAN MARTIN CORREA | I13: JUAN PABLO AGUAYO | J13: FELIPE PORTILLA | K13: 397.4 | L13: 151.04 | U13: 548.44
B14: 7 | U14: =SUM(K14:T14) -> 0
B15: 8 | U15: 0
B16: 9 | U16: =SUM(K16:T16) -> 0
B17: 10 | U17: 0
B18: 11 | U18: 0
B19: 12 | U19: 0
B20: 13 | U20: 0
B21: 14 | U21: 0
B22: 15 | U22: 0
B23: 16 | U23: 0
P35: º

Sheet ELITE ABIERTA
B2: PUNTAJE ACUMULADO
B3: CATEGORÍA ABIERTA ELITE
B5: ELITE ABIERTA | E5: PUNTAJES
E6: 2018
C7: CODIGO | D7: JINETE | E7: I CHONE | F7: II CHONE | G7: III CHONE | H7: IV CHONE | I7: V CHONE | J7: VI CHONE | K7: VII CHONE | L7: VIII CHONE | M7: IX CHONE | N7: X CHONE | O7: XI CHONE | P7: XII CHONE | Q7: ACUMULADO
B8: 1 | C8: A045 | D8: ALMEIDA AYALA HECTOR | F8: 324 | G8: 162 | J8: =80.5*2 -> 161 | K8: 136 | O8: 136 | P8: 241.8 | Q8: =SUM(E8:P8) -> 1160.8
B9: 2 | C9: A035 | D9: VINTIMILLA PABLO | E9: 169.6 | F9: 233.7 | G9: 137.7 | J9: 228.95 | O9: 144 | P9: 128 | Q9: 1041.95
B10: 3 | C10: A248 | D10: ANDRADE JOSE DANIEL | E10: 135.68 | F10: 246 | K10: 160 | L10: 160 | O10: 160 | P10: 160 | Q10: 1021.68
B11: 4 | C11: A250 | D11: WEEMAELS NATHALIE | F11: 307.8 | I11: 68.8 | P11: =155.42+136 -> 291.42 | Q11: 668.02
B12: 5 | C12: A192 | D12: LOZADA JOSE ARMANDO | F12: 153.9 | H12: 128.16 | K12: 128 | P12: 163.6 | Q12: 573.66
B13: 6 | C13: A097 | D13: MORABOWEN CESAR | G13: 145.8 | H13: 160.2 | O13: =0.75*2*80 -> 120 | P13: =160*0.7 -> 112 | Q13: 538
B14: 7 | C14: J015 | D14: DARQUEA ANDRÉS | G14: 123.12 | J14: 90.16 | L14: 152 | P14: 152 | Q14: 517.28
B15: 8 | C15: A309 | D15: HERNANDEZ MARÍA JOSÉ | F15: 123.12 | G15: 129.6 | J15: 152.95 | Q15: 405.67
B16: 9 | C16: A057 | D16: DÁVILA JUAN DIEGO | J16: 241 | O16: =0.95*80*2 -> 152 | Q16: 393
B17: 10 | C17: A055 | D17: SERRANO ARMANDO | F17: 162 | G17: 51.6 | P17: 144 | Q17: 357.6
B18: 11 | C18: A060 | D18: VELEZ MARIA CONSUELO | E18: 67.84 | K18: 152 | P18: 120 | Q18: 339.84
B19: 12 | C19: J034 | D19: MALO ANDREA | E19: 161.12 | J19: 53.76 | K19: 121.6 | Q19: 336.48
B20: 13 | C20: A033 | D20: LETORT JOSE | F20: 145.8 | P20: 115.2 | Q20: 261
B21: 14 | C21: A171 | D21: LOYOLA MARIA CLAUDIA | E21: 84.8 | K21: 144 | Q21: 228.8
B22: 15 | C22: A058 | D22: ARTURO RIBADENEIRA | J22: 65.36 | L22: 136 | Q22: 201.36
B23: 16 | C23: A067 | D23: CANDO MARIO | J23: 67.2 | P23: 130.88 | Q23: 198.08
B24: 17 | C24: A353 | D24: VANDEWALLE FAYE | P24: =58.896+128 -> 186.896 | Q24: 186.896
B25: 18 | C25: A214 | D25: MOYA MIGUEL ANGEL | G25: 153.9 | Q25: 153.9
B26: 19 | C26: A035 | D26: FELIPE PORTILLA | L26: 128 | Q26: 128
B27: 20 | C27: A351 | D27: CLARK JUSTIN | J27: 103.04 | Q27: 103.04
B28: 21 | C28: J011 | D28: LETORT BERNARDA | J28: 96.6 | Q28: 96.6
B29: 22 | Q29: =SUM(E29:P29) -> 0
B30: 23 | Q30: 0
B31: 24 | Q31: 0
B32: 25 | Q32: 0
B33: 26 | Q33: 0
B34: 27 | Q34: 0
B35: 28 | Q35: 0
L37: =IF(J37>=60,"CLASIFICADO A 60 Km LIBRE y 80 Km NOVICIO",IF(J37>=40,"CLASIFICADO A 40 Km LIBRE y 60 Km NOVICIO","")) -> 
L55: =IF(J55>=60,"CLASIFICADO A 60 Km LIBRE y 80 Km NOVICIO",IF(J55>=40,"CLASIFICADO A 40 Km LIBRE y 60 Km NOVICIO","")) -> 

Sheet ELITE JUVENIL
B2: PUNTAJE ACUMULADO
B3: CATEGORÍA JUVENIL ELITE
B5: ELITE JUVENIL | E5: PUNTAJES
E6: 2018
C7: CODIGO | D7: JINETE | E7: I CHONE | F7: II CHONE | G7: III CHONE | H7: IV CHONE | I7: V CHONE | J7: VI CHONE | K7: VII CHONE | L7: VIII CHONE | M7: IX CHONE | N7: X CHONE | O7: XI CHONE | P7: XII CHONE | Q7: ACUMULADO
B8: 1 | C8: J063 | D8: GONZALEZ BERNARDA | E8: 169.6 | J8: 241 | K8: 160 | O8: 160 | P8: 160 | Q8: =SUM(E8:P8) -> 890.6
B9: 2 | C9: J096 | D9: LOYOLA TEODORO ANDRES | E9: 127.2 | H9: 128 | K9: 152 | O9: 120 | Q9: 527.2
B10: 3 | C10: J208 | D10: MASAPANTA LUIS | F10: 129.6 | G10: 65.36 | K10: 161 | P10: 62.168 | Q10: 418.128
B11: 4 | C11: M022 | D11: MORABOWEN MOSQUERA CESAR | G11: 162 | P11: 152 | Q11: 314
B12: 5 | C12: J230 | D12: MASAPANTA KEVIN | J12: 128.8 | Q12: 128.8
B13: 6 | C13: J100 | D13: HURTADO HECTOR | E13: 67.84 | H13: 60.8 | Q13: 128.64
B14: 7 | C14: J019 | D14: DARQUEA RICARDO | F14: 123.12 | Q14: 123.12
B15: 8 | Q15: 0
B16: 9 | Q16: =SUM(E16:P16) -> 0
B17: 10 | Q17: 0
B18: 11 | Q18: 0
B19: 12 | Q19: 0
B20: 13 | Q20: 0
B21: 14 | Q21: 0
B22: 15 | Q22: 0
B23: 16 | Q23: =SUM(E23:P23) -> 0
B24: 17 | Q24: =SUM(E24:P24) -> 0
B25: 18 | Q25: =SUM(E25:P25) -> 0
B26: 19 | Q26: =SUM(E26:P26) -> 0
L28: =IF(J28>=60,"CLASIFICADO A 60 Km LIBRE y 80 Km NOVICIO",IF(J28>=40,"CLASIFICADO A 40 Km LIBRE y 60 Km NOVICIO","")) -> 
L39: =IF(J39>=60,"CLASIFICADO A 60 Km LIBRE y 80 Km NOVICIO",IF(J39>=40,"CLASIFICADO A 40 Km LIBRE y 60 Km NOVICIO","")) -> 

Sheet ELITE MENORES (hidden)
B2: PUNTAJE ACUMULADO
B3: CATEGORÍA MENORES ELITE
B5: ELITE MENORES | E5: PUNTAJES
E6: 2017
C7: CODIGO | D7: JINETE | E7: I CHONE | F7: II CHONE | G7: III CHONE | H7: IV CHONE | I7: V CHONE | J7: VI CHONE | K7: VII CHONE | L7: VIII CHONE | M7: IX CHONE | N7: X CHONE | O7: ACUMULADO
B8: 1 | O8: =SUM(E8:N8) -> 0
B9: 2 | O9: 0
B10: 3 | O10: 0
B11: 4 | O11: 0
B12: 5 | O12: 0
B13: 6 | O13: 0
B14: 7 | O14: 0
B15: 8 | O15: 0
B16: 9 | O16: 0
B17: 10 | O17: 0
B18: 11 | O18: 0
B19: 12 | O19: 0
B20: 13 | O20: 0
B21: 14 | O21: 0
B22: 15 | O22: =SUM(E22:N22) -> 0
B23: 16 | O23: =SUM(E23:N23) -> 0
B24: 17 | O24: =SUM(E24:N24) -> 0
B25: 18 | O25: =SUM(E25:N25) -> 0
B26: 19 | O26: =SUM(E26:N26) -> 0
L28: =IF(J28>=60,"CLASIFICADO A 60 Km LIBRE y 80 Km NOVICIO",IF(J28>=40,"CLASIFICADO A 40 Km LIBRE y 60 Km NOVICIO","")) -> 
L39: =IF(J39>=60,"CLASIFICADO A 60 Km LIBRE y 80 Km NOVICIO",IF(J39>=40,"CLASIFICADO A 40 Km LIBRE y 60 Km NOVICIO","")) -> 

Sheet ELITE CABALLOS
B2: PUNTAJE ACUMULADO
B3: CATEGORÍA CABALLOS ELITE
B5: ELITE CABALLOS | F5: PUNTAJES
F6: 2018
C7: CODIGO | D7: CABALLO | E7: DUEÑO/JINETE | F7: I CHONE | G7: II CHONE | H7: III CHONE | I7: IV CHONE | J7: V CHONE | K7: VI CHONE | L7: VII CHONE | M7: VIII CHONE | N7: IX CHONE | O7: X CHONE | P7: XI CHONE | Q7: XII CHONE | R7: ACUMULADO
B8: 1 | C8: C403 | D8: MARAVILLA | E8: HECTOR ALMEIDA AYALA | G8: 129.6 | H8: 162 | K8: =80.5*2 -> 161 | Q8: 241.8 | R8: =SUM(H8:Q8) -> 564.8
B9: 2 | C9: C417 | D9: MANDY CMB | E9: MORABOWEN CESAR | H9: 162 | I9: 160.2 | P9: 120 | Q9: 152 | R9: =SUM(F9:Q9)-P9 -> 474.2
B10: 3 | C10: C401 | D10: SUMAYA BD | E10: MARIA JOSE HERNANDEZ | G10: 123.12 | H10: 129.6 | K10: =161*0.95 -> 152.95 | M10: 152 | R10: =SUM(H10:Q10) -> 434.55
B11: 4 | C11: C512 | D11: SA DREAMSHA | E11: FELIPE ANDRADE | F11: 135.68 | L11: 128 | Q11: 160 | R11: =SUM(F11:Q11) -> 423.68
B12: 5 | C12: C278 | D12: JUGUETE | E12: LOYOLA TEODORO ANDRES | F12: 127.2 | I12: 128 | L12: 152 | P12: 120 | R12: =SUM(F12:O12) -> 407.2
B13: 6 | C13: C072 | D13: QUITA PENAS | E13: FELIPE ANDRADE | G13: 246 | L13: 160 | R13: =SUM(F13:Q13) -> 406
B14: 7 | C14: C252 | D14: BIANCA | E14: VINTIMILLA PABLO | F14: 169.6 | G14: 233.7 | R14: 403.3
B15: 8 | C15: C382 | D15: POLACO | E15: BERNARDO GONZALEZ | K15: 241 | P15: 160 | R15: 401
B16: 9 | C16: C238 | D16: CALEÑA CMB | E16: MORABOWEN CESAR | H16: 129.6 | I16: 128.16 | L16: 136 | R16: 393.76
B17: 10 | C17: C491 | D17: SOLOANDA | E17: FELIPE ANDRADE | K17: 241 | P17: 152 | R17: 393
B18: 11 | C18: C542 | D18: PV GUAPA | E18: PABLO VINTIMILLA | I18: 128.16 | L18: 128 | Q18: 128 | R18: 384.16
B19: 12 | C19: C419 | D19: GH PSHYRO | E19: PABLO VINTIMILLA | G19: 153.9 | K19: 228.95 | R19: 382.85
B20: 13 | C20: C004 | D20: TEQUILA | E20: BERNARDO GONZALEZ | F20: 169.6 | L20: 160 | R20: 329.6
B21: 14 | C21: C115 | D21: AVENTURERO | E21: HECTOR ALMEIDA AYALA | G21: 324 | R21: 324
B22: 15 | C22: C282 | D22: MAGIC MENES | E22: FELIPE ANDRADE | F22: 67.84 | G22: 129.6 | K22: 122.36 | R22: 319.8
B23: 16 | C23: C093 | D23: CG ALLASKI | E23: WEEMAELS NATHALIE | G23: 307.8 | R23: 307.8
B24: 17 | C24: C407 | D24: SALMA | E24: BENITO JARAMILLO | G24: 129.6 | K24: 161 | R24: 290.6
B25: 18 | C25: C376 | D25: NABU | E25: BERNARDO DARQUEA | G25: 123.12 | Q25: 152 | R25: 275.12
B26: 19 | C26: C096 | D26: AR FAISAN | E26: ARTURO RIBADENEIRA | G26: 67.2 | H26: 68.8 | K26: 122.36 | R26: 258.36
B27: 20 | C27: C143 | D27: ALI | E27: BERNARDO DARQUEA | G27: 67.2 | H27: 68.8 | Q27: 122.2 | R27: 258.2
B28: 21 | C28: C229 | D28: BULERIA CMB | E28: MORABOWEN CESAR | H28: 145.8 | Q28: 112 | R28: 257.8
B29: 22 | C29: C400 | D29: ANGOSTURA FRODO | E29: ARTURO RIBADENEIRA | K29: 63.84 | M29: 64 | Q29: 122.2 | R29: 250.04
B30: 23 | C30: C197 | D30: PATACON | E30: LOYOLA CLAUDIA MARIA | F30: 84.8 | L30: 144 | R30: 228.8
B31: 24 | C31: C261 | D31: GRINGO | E31: BERNARDO DARQUEA | H31: 123.12 | K31: 90.16 | R31: 213.28
B32: 25 | C32: C016 | D32: BOX BRUMA | E32: NATHALIE WEEMAELS | J32: 68.8 | Q32: 136 | R32: 204.8
B33: 26 | C33: C396 | D33: SC SHADID | E33: PABLO VINTIMILLA | Q33: 163.6 | R33: 163.6
B34: 27 | C34: C502 | D34: MONARCH | E34: LOYOLA MARIA CLAUDIA | G34: 162 | R34: 162
B35: 28 | C35: C441 | D35: SANTOO | E35: VELEZ MENA MARIA CONSUELO | F35: 161.12 | R35: 161.12
B36: 29 | C36: C232 | D36: ASRAEL | E36: BERNARDO GONZALEZ | Q36: 160 | R36: 160
B37: 30 | C37: C413 | D37: RO EVITA | E37: NATHALIE WEEMAELS | Q37: 155.42 | R37: 155.42
B38: 31 | C38: C165 | D38: DIAMANTE | E38: MIGUEL MOYA | H38: 153.9 | R38: 153.9
B39: 32 | C39: C209 | D39: AISHA | E39: VELEZ MENA MARIA CONSUELO | L39: 152 | R39: 152
B40: 33 | C40: C518 | D40: KARISMA VO | E40: BRUNO CARRERA | Q40: 152 | R40: 152
B41: 34 | C41: C046 | D41: AMARETO | E41: LETORT BERNARDA | G41: 145.8 | R41: 145.8
B42: 35 | C42: C587 | D42: TTT TRICIA GAL | E42: PABLO VINTIMILLA | P42: 144 | R42: 144
B43: 36 | C43: C357 | D43: MD YALA | E43: ARMANDO SERRANO | Q43: 144 | R43: 144
B44: 37 | C44: C175 | D44: CLAW | E44: ARTURO RIBADENEIRA | M44: 136 | R44: 136
B45: 38 | C45: C097 | D45: CENTAURO | E45: JAIME BURBANO | P45: 136 | R45: 136
B46: 39 | C46: C204 | D46: AR ALBATSYN | E46: FELIPE PORTILLA | M46: 128 | R46: 128
B47: 40 | C47: C200 | D47: MULATA | E47: GALO RECALDE | K47: 115.92 | R47: 115.92
B48: 41 | R48: =SUM(F48:Q48) -> 0
B49: 42 | R49: 0
B50: 43 | R50: 0
B51: 44 | R51: 0
B52: 45 | R52: =SUM(F52:Q52) -> 0
B53: 46 | R53: 0
B54: 47 | R54: 0
B55: 48 | R55: 0
B56: 49 | R56: 0
B57: 50 | R57: 0
B58: 51 | R58: 0
B59: 52 | R59: 0
B60: 53 | R60: 0
B61: 54 | R61: =SUM(F61:Q61) -> 0
B62: 55 | R62: =SUM(F62:Q62) -> 0
B63: 56 | R63: =SUM(F63:Q63) -> 0
M83: =IF(K83>=60,"CLASIFICADO A 60 Km LIBRE y 80 Km NOVICIO",IF(K83>=40,"CLASIFICADO A 40 Km LIBRE y 60 Km NOVICIO","")) -> 

Sheet AMATEUR ABIERTA
B2: PUNTAJE ACUMULADO
B3: CATEGORÍA ABIERTA NOVICIOS
B5: NOVICIOS ABIERTA | E5: PUNTAJES
E6: 2018
C7: CODIGO | D7: JINETE | E7: I CHONE | F7: II CHONE | G7: III CHONE | H7: IV CHONE | I7: V CHONE | J7: VI CHONE | K7: VII CHONE | L7: VIII CHONE | M7: IX CHONE | N7: X CHONE | O7: XI CHONE | P7: XII CHONE | Q7: ACUMULADO
B8: 1 | C8: A178 | D8: ANDRADE JUAN CARLOS | F8: 67.2 | G8: 68.8 | J8: 122.36 | O8: =0.8*2*80 -> 128 | P8: =147.24+65.44 -> 212.68 | Q8: =SUM(E8:P8) -> 599.04
B9: 2 | C9: A251 | D9: GONZALEZ JERVES XIMENA | E9: 80.56 | J9: 128.8 | K9: 115.2 | L9: 144 | O9: =0.8*2*80 -> 128 | Q9: 596.56
B10: 3 | C10: A348 | D10: MENDOZA KLARIZA | J10: 63.84 | L10: 64 | P10: 122.2 | Q10: 250.04
B11: 4 | C11: A064 | D11: DIEGO CASTILLO | F11: 63.84 | G11: 61.92 | P11: 121.6 | Q11: 247.36
B12: 5 | C12: A313 | D12: AGUAYO JUAN PABLO | G12: 65.36 | H12: 64 | J12: 109.48 | Q12: 238.84
B13: 6 | C13: J201 | D13: CALERO MARÍA ISABEL | G13: 116.64 | H13: 121.752 | Q13: 238.392
B14: 7 | C14: A135 | D14: DONOSO SEBASTIAN | H14: 57.6 | J14: 47.04 | K14: 108.8 | Q14: 213.44
B15: 8 | C15: A030 | D15: MONCAYO DANILO | G15: 55.04 | J15: 115.92 | Q15: 170.96
B16: 9 | C16: A125 | D16: FRANCISCO FALCONÍ | P16: 139.06 | Q16: 139.06
B17: 10 | C17: A236 | D17: TATE JUNE | F17: 129.6 | Q17: 129.6
B18: 11 | C18: A050 | D18: ALZAMORA MARÍA CECILIA | L18: 57.6 | P18: 65.44 | Q18: 123.04
B19: 12 | C19: A012 | D19: ALMEIDA PARDO HÉCTOR | L19: 60.8 | P19: 62.168 | Q19: 122.968
B20: 13 | C20: A 501 | D20: TUTIVEN LUIS | I20: 61.92 | J20: 43.68 | Q20: 105.6
B21: 14 | C21: A142 | D21: GONZALEZ SEBASTIAN | H21: 60.8 | Q21: 60.8
B22: 15 | C22: A333 | D22: BARBERIS NICOLE | J22: 60.48 | Q22: 60.48
B23: 16 | C23: A315 | D23: RUBIO LUIS | G23: 58.48 | Q23: 58.48
B24: 17 | C24: J220 | D24: MONCAYO MONCAYO FERNANDO | J24: 57.12 | Q24: 57.12
B25: 18 | C25: A355 | D25: GARCÍA MANUEL | L25: 54.4 | Q25: 54.4
B26: 19 | C26: A021 | D26: ALVEAR JUAN CARLOS | J26: 50.4 | Q26: 50.4
B27: 20 | C27: A326 | D27: ACHANCE GUIDO OSWALDO | G27: 48.16 | Q27: 48.16
B28: 21 | Q28: =SUM(E28:P28) -> 0
B29: 22 | Q29: =SUM(E29:P29) -> 0
B30: 23 | Q30: 0
B31: 24 | Q31: 0
B32: 25 | Q32: 0
B33: 26 | Q33: 0
B34: 27 | Q34: 0
B35: 28 | Q35: 0
B36: 29 | Q36: 0
B37: 30 | Q37: 0
B38: 31 | Q38: 0
B39: 32 | Q39: 0
B40: 33 | Q40: =SUM(E40:P40) -> 0
B41: 34 | Q41: 0
B42: 35 | Q42: 0
B43: 36 | Q43: 0
B44: 37 | Q44: 0
B45: 38 | Q45: 0
B46: 39 | Q46: 0
B47: 40 | Q47: 0
B48: 41 | Q48: 0
B49: 42 | Q49: 0
B50: 43 | Q50: =SUM(E50:P50) -> 0
B51: 44 | Q51: =SUM(E51:P51) -> 0
B52: 45 | Q52: 0
B53: 46 | Q53: 0
B54: 47 | Q54: 0
B55: 48 | Q55: 0
B56: 49 | Q56: 0
B57: 50 | Q57: 0
B58: 51 | Q58: 0
B59: 52 | Q59: 0
B60: 53 | Q60: 0
B61: 54 | Q61: 0
B62: 55 | Q62: 0
B63: 56 | Q63: 0
B64: 57 | Q64: 0
B65: 58 | Q65: 0
B66: 59 | Q66: 0
B67: 60 | Q67: 0
B68: 61 | Q68: 0
B69: 62 | Q69: 0
B70: 63 | Q70: 0
B71: 64 | Q71: 0
B72: 65 | Q72: 0
B73: 66 | Q73: 0
B74: 67 | Q74: 0
L94: =IF(J94>=60,"CLASIFICADO A 60 Km LIBRE y 80 Km NOVICIO",IF(J94>=40,"CLASIFICADO A 40 Km LIBRE y 60 Km NOVICIO","")) -> 

Sheet AMATEUR JUVENIL
B2: PUNTAJE ACUMULADO
B3: CATEGORÍA JUVENIL NOVICIOS
B5: NOVICIOS JUVENIL | E5: PUNTAJES
E6: 2018
C7: CODIGO | D7: JINETE | E7: I CHONE | F7: II CHONE | G7: III CHONE | H7: IV CHONE | I7: V CHONE | J7: VI CHONE | K7: VII CHONE | L7: VIII CHONE | M7: IX CHONE | N7: X CHONE | O7: XI CHONE | P7: XII CHONE | Q7: ACUMULADO
B8: 1 | C8: J137 | D8: DAVALOS JORGE EDUARDO | G8: 129.6 | H8: 128.16 | O8: 60.8 | P8: 65.44 | Q8: =SUM(E8:P8) -> 384
B9: 2 | C9: J136 | D9: SALTOS JUAN XAVIER | H9: 64 | J9: 67.2 | K9: 115.2 | O9: =0.8*160 -> 128 | Q9: 374.4
B10: 3 | C10: J109 | D10: LOYOLA LEONARDO | K10: 64 | L10: 64 | O10: 64 | P10: 130.88 | Q10: 322.88
B11: 4 | C11: J232 | D11: TORRES GIORDANO | J11: 63.84 | K11: 108.8 | O11: 121.6 | Q11: 294.24
B12: 5 | C12: J098 | D12: MORENO PAULINA | H12: 54.4 | J12: 60.48 | K12: 121.6 | Q12: 236.48
B13: 6 | C13: J231 | D13: SALTOS ANA PAULA | J13: 57.12 | K13: 60.8 | O13: 115.2 | Q13: 233.12
B14: 7 | C14: I019 | D14: CASTILLO DAFNE | G14: 68.8 | L14: 60.8 | Q14: 129.6
B15: 8 | C15: J106 | D15: MONTESINOS SANTIAGO | K15: 128 | Q15: 128
B16: 9 | C16: J040 | D16: DARQUEA GABRIEL | P16: 128 | Q16: 128
B17: 10 | C17: J138 | D17: PEREZ LEON SANDRO | H17: 57.6 | Q17: 57.6
B18: 11 | C18: J123 | D18: CACERES LUCIA | O18: 57.6 | Q18: 57.6
B19: 12 | C19: A335 | D19: JOSE MARIA CARVALLO | J19: 53.76 | Q19: 53.76
B20: 13 | Q20: =SUM(E20:P20) -> 0
B21: 14 | Q21: 0
B22: 15 | Q22: =SUM(E22:P22) -> 0
B23: 16 | Q23: 0
B24: 17 | Q24: 0
B25: 18 | Q25: 0
B26: 19 | Q26: 0
B27: 20 | Q27: 0
B28: 21 | Q28: 0
B29: 22 | Q29: 0
B30: 23 | Q30: 0
B31: 24 | Q31: 0
B32: 25 | Q32: 0
B33: 26 | Q33: 0
B34: 27 | Q34: 0
B35: 28 | Q35: =SUM(E35:P35) -> 0
B36: 29 | Q36: 0
B37: 30 | Q37: 0
B38: 31 | Q38: 0
B39: 32 | Q39: 0
B40: 33 | Q40: 0
B41: 34 | Q41: 0
B42: 35 | Q42: 0
B43: 36 | Q43: 0
B44: 37 | Q44: 0
B45: 38 | Q45: 0
B46: 39 | Q46: 0
B47: 40 | Q47: 0
B48: 41 | Q48: 0
B49: 42 | Q49: 0
B50: 43 | Q50: 0
B51: 44 | Q51: 0
B52: 45 | Q52: 0
B53: 46 | Q53: 0
B54: 47 | Q54: 0
B55: 48 | Q55: 0
B56: 49 | Q56: 0
B57: 50 | Q57: 0
B58: 51 | Q58: 0
B59: 52 | Q59: 0
B60: 53 | Q60: 0
B61: 54 | Q61: 0
B62: 55 | Q62: 0
B63: 56 | Q63: 0
L65: =IF(J65>=60,"CLASIFICADO A 60 Km LIBRE y 80 Km NOVICIO",IF(J65>=40,"CLASIFICADO A 40 Km LIBRE y 60 Km NOVICIO","")) -> 
L83: =IF(J83>=60,"CLASIFICADO A 60 Km LIBRE y 80 Km NOVICIO",IF(J83>=40,"CLASIFICADO A 40 Km LIBRE y 60 Km NOVICIO","")) -> 

Sheet AMATEUR MENORES
B2: PUNTAJE ACUMULADO
B3: CATEGORÍA MENORES NOVICIOS
B5: INFANTIL | E5: PUNTAJES
E6: 2018
C7: CODIGO | D7: JINETE | E7: I CHONE | F7: II CHONE | G7: III CHONE | H7: IV CHONE | I7: V CHONE | J7: VI CHONE | K7: VII CHONE | L7: VIII CHONE | M7: IX CHONE | N7: X CHONE | O7: XI CHONE | P7: XII CHONE | Q7: ACUMULADO
B8: 1 | C8: I047 | D8: ANDRADE FELIPE ANDRES | E8: 135.68 | H8: 64 | J8: 128.8 | K8: 160 | O8: 160 | P8: =65.44+160 -> 225.44 | Q8: =SUM(E8:P8) -> 873.92
B9: 2 | C9: M086 | D9: CARRERA BRUNO | E9: 67.84 | F9: 129.6 | H9: 60.8 | J9: 122.36 | P9: 152 | Q9: 532.6
B10: 3 | C10: M087 | D10: CARRERA CAMILA | H10: 57.6 | J10: 63.84 | K10: 128 | O10: 128 | P10: 128 | Q10: 505.44
B11: 4 | D11: LOPEZ JUAN RAFAEL | Q11: 0
B12: 5 | D12: DONOSO JULIAN | Q12: 0
B13: 6 | C13: J207 | D13: DARQUEA EMILIO | F13: 67.2 | G13: 68.8 | P13: 122.2 | Q13: 258.2
B14: 7 | C14: M030 | D14: MARÍN CESAR JAVIER | J14: 67.2 | K14: 60.8 | O14: 115.2 | Q14: 243.2
B15: 8 | C15: M040 | D15: TORRES RAFAEL ESTEBAN | K15: 64 | O15: 121.6 | Q15: 185.6
B16: 9 | C16: M071 | D16: DONOSO JULIAN | H16: 54.4 | J16: 60.48 | Q16: 114.88
B17: 10 | C17: M037 | D17: LOPEZ JUAN RAFAEL | K17: 57.6 | Q17: 57.6
B18: 11 | Q18: =SUM(E18:P18) -> 0
B19: 12 | Q19: =SUM(E19:P19) -> 0
B20: 13 | Q20: 0
B21: 14 | Q21: 0
B22: 15 | Q22: 0
B23: 16 | Q23: 0
B24: 17 | Q24: 0
B25: 18 | Q25: 0
B26: 19 | Q26: 0
B27: 20 | Q27: 0
B28: 21 | Q28: 0
B29: 22 | Q29: 0
B30: 23 | Q30: 0
L32: =IF(J32>=60,"CLASIFICADO A 60 Km LIBRE y 80 Km NOVICIO",IF(J32>=40,"CLASIFICADO A 40 Km LIBRE y 60 Km NOVICIO","")) -> 
L50: =IF(J50>=60,"CLASIFICADO A 60 Km LIBRE y 80 Km NOVICIO",IF(J50>=40,"CLASIFICADO A 40 Km LIBRE y 60 Km NOVICIO","")) -> 

Sheet CABALLOS NOVICIOS
B2: PUNTAJE ACUMULADO
B3: CATEGORÍA CABALLOS NOVICIOS
B5: CABALLOS NOVICIOS | F5: PUNTAJES
F6: 2018
C7: CODIGO | D7: CABALLO | E7: DUEÑO/JINETE | F7: I CHONE | G7: II CHONE | H7: III CHONE | I7: IV CHONE | J7: V CHONE | K7: VI CHONE | L7: VII CHONE | M7: VIII CHONE | N7: IX CHONE | O7: X CHONE | P7: XI CHONE | Q7: XII CHONE | R7: ACUMULADO
B8: 1 | C8: C561 | D8: MUNIRAH | E8: FELIPE ANDRADE | I8: 64 | K8: 128.8 | L8: 160 | P8: 160 | Q8: 160 | R8: =SUM(K8:Q8) -> 608.8
B9: 2 | C9: C492 | D9: BERNARDA | E9: XIMENA GONZALEZ | K9: 128.8 | M9: 144 | P9: 128 | R9: =SUM(F9:Q9) -> 400.8
B10: 3 | C10: C064 | D10: SIMBA | E10: MARIA CONSUELO VELEZ MENA | F10: 67.84 | M10: 160 | P10: 160 | R10: 387.84
B11: 4 | C11: C243 | D11: PAVITA | E11: JUAN CARLOS ANDRADE | J11: 61.92 | K11: 43.68 | P11: 128 | Q11: 147.24 | R11: 380.84 | T11: º
B12: 5 | C12: C563 | D12: ABIGAIL | E12: GONZALEZ SEBASTIAN | I12: 60.8 | K12: 63.84 | L12: 128 | P12: 128 | R12: 380.64
B13: 6 | C13: C558 | D13: SAHIRA | E13: SALTOS JUAN XAVIER | I13: 64 | K13: 67.2 | L13: 115.2 | P13: 128 | R13: 374.4
B14: 7 | C14: C508 | D14: AMANI | E14: MORENO PAULINA | I14: 54.4 | K14: 60.48 | L14: 121.6 | P14: 121.6 | R14: 358.08
B15: 8 | C15: C578 | D15: JC KISS | E15: MALO ANDREA | K15: 53.76 | L15: 121.6 | Q15: 120 | R15: 295.36
B16: 9 | C16: C104 | D16: HALCON | E16: DIEGO CASTILLO | G16: 63.84 | H16: 61.92 | Q16: 121.6 | R16: 247.36
B17: 10 | C17: C409 | D17: JOYA | E17: MARIN CESAR JAVIER | K17: 67.2 | L17: 60.8 | P17: 115.2 | R17: 243.2
B18: 11 | C18: C367 | D18: SHAKIRA CMB | E18: CESAR MORABOWEN | P18: 115.2 | Q18: 128 | R18: 243.2
B19: 12 | C19: C049 | D19: KALUA | E19: TORRES RAFAEL ESTEBAN | K19: 57.12 | L19: 64 | P19: 121.6 | R19: 242.72
B20: 13 | C20: C559 | D20: ABANERO | E20: AGUAYO JUAN PABLO | H20: 65.36 | I20: 64 | K20: 109.48 | R20: 238.84
B21: 14 | C21: C565 | D21: JULIA MC | E21: CESAR MORABOWEN | H21: 116.64 | I21: 121.752 | R21: 238.392
B22: 15 | C22: C567 | D22: KIMI | E22: DONOSO SEBASTIAN | I22: 57.6 | K22: 47.04 | L22: 108.8 | R22: 213.44
B23: 16 | C23: C265 | D23: COMETA | E23: GONZALEZ JERVES XIMENA | F23: 80.56 | L23: 115.2 | R23: 195.76
B24: 17 | C24: C496 | D24: TRON | E24: LOYOLA LEONARDO | L24: 64 | M24: 64 | P24: 64 | R24: 192
B25: 18 | C25: C560 | D25: BIANCA BC | E25: CARRERA CAMILA | I25: 57.6 | Q25: 128 | R25: 185.6
B26: 19 | C26: C444 | D26: QUINA | E26: TORRES GIORDANO | K26: 63.84 | L26: 108.8 | R26: 172.64
B27: 20 | C27: C410 | D27: NAVARRA | E27: SERRANO ARMANDO | H27: 51.6 | K27: 103.04 | Q27: 128 | R27: =SUM(F27:P27) -> 154.64
B28: 21 | C28: C230 | D28: TORMENTA | E28: ACHANCE GUIDO OSWALDO | H28: 48.16 | K28: 96.6 | R28: =SUM(F28:P28) -> 144.76
B29: 22 | C29: C420 | D29: JEREZ | E29: FRANCISCO FALCONI | Q29: 139.06 | R29: =SUM(F29:Q29) -> 139.06
B30: 23 | C30: C402 | D30: ABU DABI | E30: VINTIMILLA PABLO | H30: 137.7 | R30: 137.7
B31: 24 | C31: C268 | D31: DISCORDIA | E31: FELIPE ANDRADE | F31: 135.68 | R31: 135.68
B32: 25 | C32: C493 | D32: SECRET DU BARTHAS | E32: ARMANDO SERRANO | Q32: 130.88 | R32: 130.88
B33: 26 | C33: C496 | D33: TROM | E33: LEONARDO LOYOLA | Q33: 130.88 | R33: 130.88
B34: 27 | C34: C059 | D34: GS RASHID | E34: DIEGO CASTILLO | H34: 68.8 | M34: 60.8 | R34: 129.6
B35: 28 | C35: C018 | D35: SILUETA | E35: KEVIN MASAPANTA | K35: 128.8 | R35: 128.8
B36: 29 | C36: C550 | D36: PV ZAFIR | E36: HURTADO HECTOR | F36: 67.84 | I36: 60.8 | R36: 128.64
B37: 30 | C37: C437 | D37: PADILLA | E37: BENITO JARAMILLO | H37: 65.36 | Q37: 62.168 | R37: 127.528
B38: 31 | C38: C591 | D38: SAID | E38: EDUARDO DAVALOS | P38: 60.8 | Q38: 65.44 | R38: 126.24
B39: 32 | C39: C570 | D39: KARIÑO | E39: MARÍA CECILIA ALZAMORA | M39: 57.6 | Q39: 65.44 | R39: 123.04
B40: 33 | C40: C012 | D40: PRINCIPE HA | E40: HÉCTOR ALMEIDA PARDO | M40: 60.8 | Q40: 62.17 | R40: 122.97
B41: 34 | C41: C564 | D41: TEQUILA CMB | E41: CESAR MORABOWEN | I41: 57.6 | Q41: 58.9 | R41: 116.5
B42: 35 | C42: C230 | D42: TORMENTA | E42: JOSE LETORT | Q42: 115.2 | R42: 115.2
B43: 36 | C43: C568 | D43: MELCOCHA TENHA DC | E43: DONOSO JULIAN | I43: 54.4 | K43: 60.48 | R43: 114.88
B44: 37 | C44: C436 | D44: GUARAGUA CSE | E44: FERNANDO MONCAYO MONCAYO | H44: 55.04 | K44: 57.12 | R44: 112.16
B45: 38 | C45: C493 | D45: SECRET DU BARTHAS | E45: MARIO CANDO | K45: 67.2 | R45: 67.2
B46: 39 | C46: C519 | D46: KURDA | E46: JUAN CARLOS ANDRADE | Q46: 65.44 | R46: 65.44
B47: 40 | C47: C515 | D47: SA TAIRA | E47: FELIPE ANDRADE | Q47: 65.44 | R47: 65.44
B48: 41 | C48: C014 | D48: SINTRA | E48: ARTURO RIBADENEIRA | J48: 65.36 | R48: 65.36
B49: 42 | C49: C562 | D49: AZEEZA | E49: CARRERA BRUNO | I49: 60.8 | R49: 60.8
B50: 43 | C50: C554 | D50: ESMERALDA | E50: SALTOS ANA PAULA | L50: 60.8 | R50: 60.8
B51: 44 | C51: C462 | D51: AMARULA | E51: JOSÉ LETORT | K51: 60.48 | R51: 60.48
B52: 45 | C52: C423 | D52: PIROPO | E52: RUBIO LUIS | H52: 58.48 | R52: =SUM(F52:P52) -> 58.48
B53: 46 | C53: C269 | D53: ESCARLET | E53: CACERES LUCIA | P53: 57.6 | R53: =SUM(F53:Q53) -> 57.6
B54: 47 | C54: C397 | D54: RAYO | E54: LOPEZ JUAN RAFAEL | L54: 57.6 | R54: 57.6
B55: 48 | C55: C571 | D55: NEIDA | E55: MANUEL GARCÍA | M55: 54.4 | R55: 54.4
B56: 49 | C56: C469 | D56: CRISTINA | E56: JOSE MARIA CARVALLO | K56: 53.76 | R56: 53.76
B57: 50 | C57: C466 | D57: PANPAMSITO | E57: JUAN CARLOS ALVEAR | K57: 50.4 | R57: 50.4
B58: 51 | R58: 0
B59: 52 | R59: =SUM(F59:Q59) -> 0
B60: 53 | R60: =SUM(F60:P60) -> 0
B61: 54 | R61: =SUM(F61:Q61) -> 0
B62: 55 | R62: =SUM(F62:Q62) -> 0
B63: 56 | R63: =SUM(F63:Q63) -> 0
B64: 57 | R64: =SUM(F64:Q64) -> 0
B65: 58 | R65: 0
B66: 59 | R66: 0
B67: 60 | R67: 0
B68: 61 | R68: 0
B69: 62 | R69: 0
B70: 63 | R70: 0
B71: 64 | R71: 0
B72: 65 | R72: 0
B73: 66 | R73: 0
B74: 67 | R74: =SUM(F74:Q74) -> 0
B75: 68 | R75: =SUM(F75:Q75) -> 0
B76: 69 | R76: =SUM(F76:Q76) -> 0
B77: 70 | R77: =SUM(F77:Q77) -> 0
B78: 71 | R78: =SUM(F78:P78) -> 0
B79: 72 | R79: 0
B80: 73 | R80: 0
B81: 74 | R81: 0
B82: 75 | R82: 0
B83: 76 | R83: 0
B84: 77 | R84: 0
B85: 78 | R85: 0
B86: 79 | R86: 0
B87: 80 | R87: 0
B88: 81 | R88: 0
B89: 82 | R89: 0
B90: 83 | R90: 0
B91: 84 | R91: 0
B92: 85 | R92: 0
B93: 86 | R93: 0
B94: 87 | R94: 0
B95: 88 | R95: 0
B96: 89 | R96: 0
B97: 90 | R97: 0
B98: 91 | R98: 0

Sheet BINOMIOS ABIERTA
B2: PUNTAJE ACUMULADO
B3: CATEGORÍA BINOMIOS ABIERTA
B5: BINOMIOS ABIERTA | G5: PUNTAJES
G6: 2018
C7: CODIGO | D7: JINETE | E7: CODIGO | F7: CABALLO | G7: I CHONE | H7: II CHONE | I7: III CHONE | J7: IV CHONE | K7: V CHONE | L7: VI CHONE | M7: VII CHONE | N7: VIII CHONE | O7: IX CHONE | P7: X CHONE | Q7: XI CHONE | R7: XII CHONE | S7: ACUMULADO
B8: 1 | C8: A059 | D8: ALMEIDA AYALA HECTOR | E8: C410 | F8: MARAVILLA | I8: 162 | L8: =80.5*2 -> 161 | R8: 241.8 | S8: =SUM(G8:R8) -> 564.8
B9: 2 | C9: A249 | D9: ANDRADE JOSE DANIEL | E9: C072 | F9: QUITA PENAS | H9: 246 | M9: 160 | S9: 406
B10: 3 | C10: A309 | D10: HERNANDEZ MARÍA JOSÉ | E10: C393 | F10: SUMAYA BD | H10: 123.12 | I10: 129.6 | L10: =161*0.95 -> 152.95 | S10: 405.67
B11: 4 | C11: A092 | D11: VINTIMILLA PABLO | E11: C252 | F11: BIANCA | G11: 169.6 | H11: 233.7 | S11: 403.3
B12: 5 | C12: A347 | D12: GONZALEZ XIMENA | E12: C492 | F12: BERNARDA | L12: 128.8 | N12: 144 | Q12: 128 | S12: 400.8
B13: 6 | C13: A057 | D13: DAVILA JUAN DIEGO | E13: C491 | F13: SOLOANDA | L13: 241 | Q13: 152 | S13: 393
B14: 7 | C14: A059 | D14: ALMEIDA AYALA HECTOR | E14: C115 | F14: AVENTURERO | H14: 324 | S14: 324
B15: 8 | C15: J034 | D15: ANDRADE JOSÉ DANIEL | E15: C064 | F15: SIMBA | N15: 160 | Q15: 160 | S15: 320
B16: 9 | C16: A055 | D16: WEEMAELS NATHALIE | E16: C093 | F16: CG ALLASKI | H16: 307.8 | S16: 307.8
B17: 10 | C17: A249 | D17: ANDRADE JOSE DANIEL | E17: C512 | F17: SA DREAMSHA | G17: 135.68 | R17: 160 | S17: 295.68
B18: 11 | C18: A045 | D18: MORABOWEN CESAR | E18: C446 | F18: MANDY | J18: 160.2 | Q18: 120 | S18: =SUM(I18:R18) -> 280.2
B19: 12 | C19: A178 | D19: ANDRADE JUAN CARLOS | E19: C243 | F19: PAVITA | Q19: 128 | R19: 147.24 | S19: =SUM(G19:R19) -> 275.24
B20: 13 | C20: A178 | D20: ANDRADE JUAN CARLOS | E20: C096 | F20: AR FAISAN | H20: 67.2 | I20: 68.8 | L20: 128.8 | S20: 264.8
B21: 14 | C21: A045 | D21: MORABOWEN CESAR | E21: C229 | F21: BULERIA CMB | I21: 145.8 | R21: 112 | S21: 257.8
B22: 15 | C22: A192 | D22: LOZADA JOSE ARMANDO | E22: C542 | F22: PV GUAPA | J22: 128.16 | M22: 128 | S22: 256.16
B23: 16 | C23: A348 | D23: MENDOZA CLARA | E23: C400 | F23: ANGOSTURA FRODO | L23: 63.84 | N23: 64 | R23: 122.2 | S23: 250.04
B24: 17 | C24: A313 | D24: AGUAYO JUAN PABLO | E24: C420 | F24: ABANERO | I24: 65.36 | J24: 64 | L24: 109.48 | S24: 238.84
B25: 18 | C25: J201 | D25: CALERO MARÍA ISABEL | E25: C434 | F25: JULIA MC | I25: 116.64 | J25: 121.752 | S25: 238.392
B26: 19 | C26: A092 | D26: VINTIMILLA PABLO | E26: C419 | F26: GH PSHYRO | L26: 228.95 | S26: 228.95
B27: 20 | C27: J055 | D27: LOYOLA CLAUDIA MARIA | E27: C197 | F27: PATACON | G27: 84.8 | M27: 144 | S27: 228.8
B28: 21 | C28: J015 | D28: DARQUEA ANDRÉS | E28: C261 | F28: GRINGO | I28: 123.12 | L28: 90.16 | S28: 213.28
B29: 22 | C29: A067 | D29: CANDO MARIO | E29: C493 | F29: SECRET DU BARTHAS | L29: 67.2 | R29: 130.88 | S29: 198.08
B30: 23 | C30: A240 | D30: GONZALEZ XIMENA | E30: C265 | F30: COMETA | G30: 80.56 | M30: 115.2 | S30: 195.76
B31: 24 | C31: A144 | D31: MALO ANDREA | E31: C494 | F31: JC KISS | L31: 53.76 | M31: 121.6 | S31: 175.36
B32: 25 | C32: A135 | D32: DONOSO SEBASTIAN | E32: C567 | F32: KIMI | J32: 57.6 | M32: 108.8 | S32: 166.4
B33: 26 | C33: A190 | D33: LOZADA ARMANDO | E33: C396 | F33: SC SHADID | R33: 163.6 | S33: 163.6
B34: 27 | C34: A033 | D34: ARMANDO SERRANO | E34: C409 | F34: MONARCH | H34: 162 | S34: 162
B35: 28 | C35: A097 | D35: MALO ANDREA | E35: C441 | F35: SANTOO | G35: 161.12 | S35: 161.12
B36: 29 | C36: A055 | D36: WEEMAELS NATHALIE | E36: C006 | F36: RO EVITA | R36: 155.42 | S36: 155.42
B37: 30 | C37: A190 | D37: LOZADA ARMANDO | E37: C419 | F37: GH PSHYRO | H37: 153.9 | S37: 153.9
B38: 31 | C38: A302 | D38: MOYA MIGUEL ANGEL | E38: C165 | F38: DIAMANTE | I38: 153.9 | S38: 153.9
B39: 32 | C39: J015 | D39: DARQUEA ANDRES | E39: C393 | F39: SUMAYA BD | N39: 152 | S39: 152
B40: 33 | C40: J016 | D40: DARQUEA ANDRES | E40: C416 | F40: NABU | R40: 152 | S40: =SUM(J40:R40) -> 152
B41: 34 | C41: A171 | D41: VELEZ MENA MARIA CONSUELO | E41: C209 | F41: AISHA | M41: 152 | S41: =SUM(G41:R41) -> 152
B42: 35 | C42: A026 | D42: LETORT MENA JOSÉ | E42: C046 | F42: AMARETO | H42: 145.8 | S42: 145.8
B43: 36 | C43: A092 | D43: VINTIMILLA PABLO | E43: C587 | F43: TTT TRICIA GAL | Q43: 144 | S43: 144
B44: 37 | C44: A033 | D44: SERRANO ARMANDO | E44: C357 | F44: MD YALA | R44: 144 | S44: 144
B45: 38 | C45: A125 | D45: FALCONÍ FRANCISCO | E45: C420 | F45: JEREZ | R45: 139.06 | S45: 139.06
B46: 39 | C46: A092 | D46: VINTIMILLA SERRANO PABLO | E46: C435 | F46: ABU DABI | I46: 137.7 | S46: 137.7
B47: 40 | C47: A059 | D47: ALMEIDA AYALA HECTOR | E47: C238 | F47: CALEÑA CMB | M47: 136 | S47: 136
B48: 41 | C48: A059 | D48: ALMEIDA AYALA HECTOR | E48: C097 | F48: CENTAURO | Q48: 136 | S48: 136
B49: 42 | C49: A058 | D49: RIBADENEIRA ARTURO | E49: C175 | F49: CLAW | N49: 136 | S49: 136
B50: 43 | C50: A055 | D50: WEEMAELS NATHALIE | E50: C016 | F50: BOX BRUMA | R50: 136 | S50: 136
B51: 44 | C51: A236 | D51: TATE JUNE | E51: C406 | F51: MARAVILLA | H51: 129.6 | S51: 129.6
B52: 45 | C52: A035 | D52: PORTILLA FELIPE | E52: C204 | F52: AR ALBATSYN | N52: 128 | S52: 128
B53: 46 | C53: A092 | D53: VINTIMILLA PABLO | E53: C542 | F53: PV GUAPA | R53: 128 | S53: 128
B54: 47 | C54: A064 | D54: CASTILLO DIEGO | E54: C104 | F54: HALCON | H54: 63.84 | I54: 61.92 | S54: 125.76
B55: 48 | C55: A050 | D55: ALZAMORA MARÍA CECILIA | E55: C018 | F55: KARIÑO | N55: 57.6 | R55: 65.44 | S55: 123.04
B56: 49 | C56: A012 | D56: ALMEIDA PARDO HÉCTOR | E56: C012 | F56: PRINCIPE HA | N56: 60.8 | R56: 62.17 | S56: 122.97
B57: 50 | C57: A171 | D57: VELEZ MENA MARIA CONSUELO | E57: C578 | F57: JC KISS | R57: 120 | S57: 120
B58: 51 | C58: A030 | D58: MONCAYO DANILO | E58: C200 | F58: MULATA | L58: 115.92 | S58: 115.92
B59: 52 | C59: J209 | D59: TUTIVEN LUIS | E59: C243 | F59: PAVITA | K59: 61.92 | L59: 47.04 | S59: 108.96
B60: 53 | C60: A351 | D60: CLARK JUSTIN | E60: C410 | F60: NAVARRA | L60: 103.04 | S60: 103.04
B61: 54 | C61: J011 | D61: BERNARDA LETORT | E61: C230 | F61: TORMENTA | L61: 96.6 | S61: 96.6
B62: 55 | C62: A064 | D62: DIEGO CASTILLO | E62: C059 | F62: GS RASHID | I62: 68.8 | S62: 68.8
B63: 56 | C63: A055 | D63: WEEMAELS NATHALIE | E63: C016 | F63: BOX BRUMA | K63: 68.8 | S63: 68.8
B64: 57 | C64: A171 | D64: VELEZ MENA MARIA CONSUELO | E64: C064 | F64: SIMBA | G64: 67.84 | S64: 67.84
B65: 58 | C65: A058 | D65: ARTURO RIBADENEIRA | E65: C014 | F65: SINTRA | K65: 65.36 | S65: 65.36
B66: 59 | C66: J208 | D66: MASAPANTA LUIS | E66: C437 | F66: PADILLA | I66: 65.36 | S66: 65.36
B67: 60 | C67: A142 | D67: GONZALEZ SEBASTIAN | E67: C563 | F67: ABIGAIL | J67: 60.8 | S67: 60.8
B68: 61 | C68: A333 | D68: BARBERIS NICOLE | E68: C462 | F68: AMARULA | L68: 60.48 | S68: 60.48
B69: 62 | C69: A353 | D69: VANDEWALLE FAYE | E69: C564 | F69: TEQUILA CMB | R69: 58.896 | S69: 58.896
B70: 63 | C70: A315 | D70: RUBIO LUIS | E70: C423 | F70: PIROPO | I70: 58.48 | S70: 58.48
B71: 64 | C71: J220 | D71: MONCAYO MONCAYO FERNANDO | E71: C436 | F71: GUARAGUA CSE | L71: 57.12 | S71: 57.12
B72: 65 | C72: A030 | D72: MONCAYO DANILO | E72: C436 | F72: GUARAGUA CSE | I72: 55.04 | S72: 55.04
B73: 66 | C73: A033 | D73: SERRANO ARMANDO | E73: C410 | F73: NAVARRA | I73: 51.6 | S73: 51.6
B74: 67 | C74: A021 | D74: ALVEAR JUAN CARLOS | E74: C466 | F74: PANPAMSITO | L74: 50.4 | S74: 50.4
B75: 68 | C75: A326 | D75: ACHANCE GUIDO OSWALDO | E75: C230 | F75: TORMENTA | I75: 48.16 | S75: 48.16
B76: 69 | C76: A135 | D76: DONOSO SEBASTIAN | E76: C461 | F76: KIMI | L76: 43.68 | S76: 43.68
B77: 70 | S77: =SUM(G77:R77) -> 0
B78: 71 | S78: 0
B79: 72 | S79: 0
B80: 73 | S80: 0
B81: 74 | S81: 0
B82: 75 | S82: 0
B83: 76 | S83: 0
B84: 77 | S84: 0
B85: 78 | S85: 0
B86: 79 | S86: 0
B87: 80 | S87: 0
B88: 81 | S88: 0
B89: 82 | S89: 0
B90: 83 | S90: 0
B91: 84 | S91: 0
B92: 85 | S92: =SUM(G92:R92) -> 0
B93: 86 | S93: 0
B94: 87 | S94: 0
B95: 88 | S95: 0
B96: 89 | S96: 0
B97: 90 | S97: 0
B98: 91 | S98: 0
B99: 92 | S99: 0
B100: 93 | S100: 0
B101: 94 | S101: 0
B102: 95 | S102: 0
B103: 96 | S103: 0
B104: 97 | S104: 0
B105: 98 | S105: =SUM(G105:R105) -> 0
B106: 99 | S106: 0
B107: 100 | S107: 0
B108: 101 | S108: 0
B109: 102 | S109: 0
B110: 103 | S110: 0
B111: 104 | S111: 0
B112: 105 | S112: 0
B113: 106 | S113: 0
B114: 107 | S114: 0
B115: 108 | S115: 0
B116: 109 | S116: 0
B117: 110 | S117: =SUM(G117:R117) -> 0
B118: 111 | S118: 0
B119: 112 | S119: 0
B120: 113 | S120: 0
B121: 114 | S121: 0
B122: 115 | S122: 0
B123: 116 | S123: 0
B124: 117 | S124: 0
B125: 118 | S125: 0
B126: 119 | S126: 0
B127: 120 | S127: 0
B128: 121 | S128: 0
B129: 122 | S129: 0
B130: 123 | S130: 0
B131: 124 | S131: 0
B132: 125 | S132: 0
B133: 126 | S133: 0
B134: 127 | S134: 0
B135: 128 | S135: 0
B136: 129 | S136: 0
B137: 130 | S137: =SUM(G137:R137) -> 0
B138: 131 | S138: 0
B139: 132 | S139: 0
B140: 133 | S140: 0
B141: 134 | S141: 0
B142: 135 | S142: 0
B143: 136 | S143: 0
B144: 137 | S144: 0
B145: 138 | S145: 0
P165: =IF(L165>=60,"CLASIFICADO A 60 Km LIBRE y 80 Km NOVICIO",IF(L165>=40,"CLASIFICADO A 40 Km LIBRE y 60 Km NOVICIO","")) -> 

Sheet BINOMIOS LIVIANOS
B2: PUNTAJE ACUMULADO
B3: CATEGORÍA BINOMIOS LIVIANOS
B5: BINOMIOS LIVIANOS | G5: PUNTAJES
G6: 2018
C7: CODIGO | D7: JINETE | E7: CODIGO | F7: CABALLO | G7: I CHONE | H7: II CHONE | I7: III CHONE | J7: IV CHONE | K7: V CHONE | L7: VI CHONE | M7: VII CHONE | N7: VIII CHONE | O7: IX CHONE | P7: X CHONE | Q7: XI CHONE | R7: XII CHONE | S7: ACUMULADO
B8: 1 | C8: M070 | D8: ANDRADE FELIPE ANDRES | E8: C561 | F8: MUNIRAH | J8: 64 | L8: 128.8 | M8: 160 | Q8: 160 | R8: 160 | S8: =SUM(L8:R8) -> 608.8
B9: 2 | C9: J096 | D9: LOYOLA TEODORO ANDRES | E9: C278 | F9: JUGUETE | G9: 127.2 | J9: 128 | M9: 152 | Q9: 120 | S9: =SUM(G9:R9) -> 527.2
B10: 3 | C10: J063 | D10: GONZALEZ BERNARDA | E10: C382 | F10: POLACO | L10: 241 | Q10: 160 | S10: 401
B11: 4 | C11: J136 | D11: SALTOS JUAN XAVIER | E11: C558 | F11: SAHIRA | J11: 64 | L11: 67.2 | M11: 115.2 | Q11: 128 | S11: 374.4
B12: 5 | C12: J063 | D12: GONZALEZ BERNARDA | E12: C004 | F12: TEQUILA | G12: 169.6 | M12: 160 | S12: 329.6
B13: 6 | C13: A307 | D13: LOYOLA LEONARDO | E13: C572 | F13: TRON | M13: 64 | N13: 64 | Q13: 64 | R13: 130.88 | S13: 322.88
B14: 7 | C14: M032 | D14: CAMILA CARRERA | E14: C465 | F14: ABIGAIL | L14: 63.84 | M14: 128 | Q14: 128 | S14: 319.84
B15: 8 | C15: M086 | D15: CARRERA BRUNO | E15: C282 | F15: MAGIC MENES | G15: 67.84 | H15: 129.6 | L15: 122.36 | S15: 319.8
B16: 9 | C16: M021 | D16: MORABOWEN MOSQUERA CESAR | E16: C408 | F16: MANDY CMB | I16: 162 | R16: 152 | S16: 314
B17: 10 | C17: J208 | D17: MASAPANTA LUIS | E17: C407 | F17: SALMA | H17: 129.6 | L17: 161 | S17: 290.6
B18: 11 | C18: J137 | D18: DAVALOS JORGE EDUARDO | E18: C238 | F18: CALEÑA CMB | I18: 129.6 | J18: 128.16 | S18: 257.76
B19: 12 | C19: M037 | D19: MARIN CESAR JAVIER | E19: C409 | F19: JOYA | L19: 67.2 | M19: 60.8 | Q19: 115.2 | S19: 243.2
B20: 13 | C20: J098 | D20: MORENO PAULINA | E20: C508 | F20: AMANI | J20: 54.4 | L20: 60.48 | M20: 121.6 | S20: 236.48
B21: 14 | C21: M040 | D21: TORRES RAFAEL ESTEBAN | E21: C049 | F21: KALUA | M21: 64 | Q21: 121.6 | S21: 185.6
B22: 15 | C22: J140 | D22: TORRES GIORDANO | E22: C444 | F22: QUINA | L22: 63.84 | M22: 108.8 | S22: 172.64
B23: 16 | C23: J063 | D23: GONZALEZ BERNARDA | E23: C232 | F23: ASRAEL | R23: 160 | S23: 160
B24: 17 | C24: M086 | D24: CARRERA BRUNO | E24: C518 | F24: KARISMA VO | R24: 152 | S24: 152
B25: 18 | C25: J207 | D25: EMILIO DARQUEA | E25: C143 | F25: ALI | H25: 67.2 | I25: 68.8 | S25: 136
B26: 19 | C26: I047 | D26: ANDRADE FELIPE ANDRES | E26: C268 | F26: DISCORDIA | G26: 135.68 | S26: 135.68
B27: 20 | C27: I019 | D27: CASTILLO DAFNE | E27: C059 | F27: GS RASHID | I27: 68.8 | N27: 60.8 | S27: 129.6
B28: 21 | C28: J230 | D28: MASAPANTA KEVIN | E28: C018 | F28: SILUETA | L28: 128.8 | S28: 128.8
B29: 22 | C29: J100 | D29: HURTADO HECTOR | E29: C550 | F29: PV ZAFIR | G29: 67.84 | J29: 60.8 | S29: 128.64
B30: 23 | C30: I070 | D30: CARRERA CAMILA | E30: C563 | F30: ABIGAIL | M30: 128 | S30: 128
B31: 24 | C31: J106 | D31: MONTESINOS SANTIAGO | E31: C512 | F31: SA DREAMSHA | M31: 128 | S31: 128
B32: 25 | C32: J019 | D32: DARQUEA RICARDO | E32: C376 | F32: NABU | H32: 123.12 | S32: 123.12
B33: 26 | C33: J207 | D33: DARQUEA EMILIO | E33: C143 | F33: ALI | R33: 122.2 | S33: 122.2
B34: 27 | C34: J140 | D34: TORRES GIORDANO | E34: C508 | F34: AMANI | Q34: 121.6 | S34: 121.6
B35: 28 | C35: J122 | D35: SALTOS ANA PAULA | E35: C586 | F35: SHAKIRA CMB | Q35: 115.2 | S35: 115.2
B36: 29 | C36: M071 | D36: DONOSO JULIAN | E36: C568 | F36: MELCOCHA TENHA DC | J36: 54.4 | L36: 60.48 | S36: 114.88
B37: 30 | C37: I047 | D37: ANDRADE FELIPE ANDRES | E37: C515 | F37: SA TAIRA | R37: 65.44 | S37: 65.44
B38: 31 | C38: J208 | D38: MASAPANTA LUIS | E38: C437 | F38: PADILLA | I38: 65.36 | S38: 65.36
B39: 32 | C39: M086 | D39: CARRERA BRUNO | E39: C562 | F39: AZEEZA | J39: 60.8 | S39: 60.8
B40: 33 | C40: J137 | D40: DAVALOS JORGE EDUARDO | E40: C047 | F40: SAID HC | Q40: 60.8 | S40: 60.8
B41: 34 | C41: A142 | D41: GONZALEZ SEBASTIAN | E41: C563 | F41: ABIGAIL | J41: 60.8 | S41: 60.8
B42: 35 | C42: J122 | D42: SALTOS ANA PAULA | E42: C554 | F42: ESMERALDA | M42: 60.8 | S42: 60.8
B43: 36 | C43: J123 | D43: CACERES LUCIA | E43: C269 | F43: ESCARLET | Q43: 57.6 | S43: 57.6
B44: 37 | C44: M087 | D44: CARRERA CAMILA | E44: C560 | F44: BIANCA BC | J44: 57.6 | S44: 57.6
B45: 38 | C45: M037 | D45: LOPEZ JUAN RAFAEL | E45: C397 | F45: RAYO | M45: 57.6 | S45: 57.6
B46: 39 | C46: J138 | D46: PEREZ LEON SANDRO | E46: C564 | F46: TEQUILA CMB | J46: 57.6 | S46: 57.6
B47: 40 | C47: J231 | D47: SALTOS ANA PAULA | E47: C497 | F47: KALUHA | L47: 57.12 | S47: 57.12
B48: 41 | C48: A355 | D48: MANUEL GARCÍA | E48: C025 | F48: NEIDA | N48: 54.4 | S48: 54.4
B49: 42 | C49: A335 | D49: CARVALLO JOSE MARIA | E49: C469 | F49: CRISTINA | L49: 53.76 | S49: 53.76
B50: 43 | S50: =SUM(G50:R50) -> 0
B51: 44 | S51: 0
B52: 45 | S52: 0
B53: 46 | S53: 0
B54: 47 | S54: 0
B55: 48 | S55: 0
B56: 49 | S56: 0
B57: 50 | S57: 0
B58: 51 | S58: 0
B59: 52 | S59: 0
B60: 53 | S60: 0
B61: 54 | S61: 0
B62: 55 | S62: 0
B63: 56 | S63: 0
B64: 57 | S64: 0
B65: 58 | S65: 0
B66: 59 | S66: 0
B67: 60 | S67: 0
B68: 61 | S68: 0
B69: 62 | S69: 0
B70: 63 | S70: 0
B71: 64 | S71: 0
B72: 65 | S72: 0
B73: 66 | S73: =SUM(G73:R73) -> 0
B74: 67 | S74: 0
B75: 68 | S75: 0
B76: 69 | S76: 0
B77: 70 | S77: 0
B78: 71 | S78: 0
B79: 72 | S79: 0
B80: 73 | S80: 0
B81: 74 | S81: 0
B82: 75 | S82: 0
B83: 76 | S83: 0
B84: 77 | S84: 0
B85: 78 | S85: 0
B86: 79 | S86: 0
B87: 80 | S87: 0
B88: 81 | S88: 0
B89: 82 | S89: 0
B90: 83 | S90: 0
B91: 84 | S91: 0
B92: 85 | S92: 0
B93: 86 | S93: 0
B94: 87 | S94: 0
B95: 88 | S95: 0
B96: 89 | S96: 0
B97: 90 | S97: 0
B98: 91 | S98: 0
B99: 92 | S99: 0
B100: 93 | S100: 0
B101: 94 | S101: 0
B102: 95 | S102: 0
B103: 96 | S103: 0
B104: 97 | S104: 0
B105: 98 | S105: 0
B106: 99 | S106: 0
B107: 100 | S107: 0
B108: 101 | S108: 0
B109: 102 | S109: 0
B110: 103 | S110: 0
B111: 104 | S111: 0
B112: 105 | S112: 0
B113: 106 | S113: 0
B114: 107 | S114: 0
B115: 108 | S115: 0
B116: 109 | S116: 0
B117: 110 | S117: 0
B118: 111 | S118: 0
B119: 112 | S119: 0
B120: 113 | S120: 0
B121: 114 | S121: 0
B122: 115 | S122: 0
B123: 116 | S123: 0
B124: 117 | S124: 0
B125: 118 | S125: 0
B126: 119 | S126: 0
B127: 120 | S127: 0
B128: 121 | S128: 0
B129: 122 | S129: 0
B130: 123 | S130: 0
B131: 124 | S131: 0
B132: 125 | S132: 0
B133: 126 | S133: 0
B134: 127 | S134: 0
B135: 128 | S135: 0
B136: 129 | S136: 0
B137: 130 | S137: =SUM(G137:R137) -> 0
B138: 131 | S138: 0
B139: 132 | S139: 0
B140: 133 | S140: 0
B141: 134 | S141: 0
B142: 135 | S142: 0
B143: 136 | S143: 0
B144: 137 | S144: 0
B145: 138 | S145: 0

Sheet PR MASTER (hidden)
B2: PUNTAJE ACUMULADO
B3: CATEGORÍA PROMOCIONAL ABIERTA
B5: PROMOCIONAL MASTER | E5: PUNTAJES
E6: 2016
C7: CODIGO | D7: JINETE | E7: I CHONE | F7: II CHONE | G7: III CHONE | H7: IV CHONE | I7: V CHONE | J7: VI CHONE | K7: VII CHONE | L7: VIII CHONE | M7: IX CHONE | N7: X CHONE | O7: ACUMULADO
B8: 1 | O8: =SUM(E8:N8) -> 0
B9: 2 | O9: 0
B10: 3 | O10: 0
B11: 4 | O11: 0
B12: 5 | O12: 0
B13: 6 | O13: 0
B14: 7 | O14: 0
B15: 8 | O15: 0
B16: 9 | O16: 0
B17: 10 | O17: 0
B18: 11 | O18: 0
B19: 12 | O19: 0
B20: 13 | O20: 0
B21: 14 | O21: 0
B22: 15 | O22: =SUM(E22:N22) -> 0
B23: 16 | O23: 0
B24: 17 | O24: 0
B25: 18 | O25: 0
B26: 19 | O26: 0
B27: 20 | O27: 0
B28: 21 | O28: 0
B29: 22 | O29: 0
B30: 23 | O30: 0
B31: 24 | O31: 0
B32: 25 | O32: 0
B33: 26 | O33: 0
B34: 27 | O34: 0
B35: 28 | O35: 0
L37: =IF(J37>=60,"CLASIFICADO A 60 Km LIBRE y 80 Km NOVICIO",IF(J37>=40,"CLASIFICADO A 40 Km LIBRE y 60 Km NOVICIO","")) -> 
L55: =IF(J55>=60,"CLASIFICADO A 60 Km LIBRE y 80 Km NOVICIO",IF(J55>=40,"CLASIFICADO A 40 Km LIBRE y 60 Km NOVICIO","")) -> 

Sheet PR GENERAL
B2: PUNTAJE ACUMULADO
B3: CATEGORÍA PROMOCIONAL GENERAL
B5: PROMOCIONAL GENERAL | E5: PUNTAJES
E6: 2018
C7: CODIGO | D7: JINETE | F7: II CHONE | G7: III CHONE | I7: V CHONE | J7: VI CHONE | L7: VIII CHONE | M7: X CHONE | N7: XII CHONE | O7: ACUMULADO
B8: 1 | C8: M028 | D8: MONCAYO CALERO FERNANDO | F8: 25.6 | G8: 58.48 | I8: 58.48 | L8: 48.64 | N8: 92.872 | O8: =SUM(E8:N8) -> 284.072
B9: 2 | C9: A164 | D9: DÁVALOS CARLOS MANUEL | F9: 23.04 | G9: 49.536 | N9: 62.168 | O9: 134.744
B10: 3 | C10: A312 | D10: ESTRADA CARLOS | I10: 68.8 | J10: 48.384 | O10: 117.184
B11: 4 | C11: A354 | D11: ESPINOSA JUAN FERNANDO | I11: 61.92 | L11: 51.2 | O11: 113.12
B12: 5 | C12: A321 | D12: JULIÁN FLORES | N12: 97.76 | O12: 97.76
B13: 6 | C13: J233 | D13: LANAS EMILIO JOSE | J13: 15 | N13: 65.44 | O13: 80.44
B14: 7 | C14: J234 | D14: LANAS JAIME | I14: 16 | N14: 62.168 | O14: 78.168
B15: 8 | C15: A331 | D15: DE MORA JUAN JOSÉ | G15: 19.2 | J15: 51.072 | O15: 70.272
B16: 9 | C16: A302 | D16: MOYA MIGUEL | N16: 65.44 | O16: 65.44
B17: 10 | C17: A064 | D17: CASTILLO DIEGO | I17: 65.36 | O17: 65.36
B18: 11 | C18: J015 | D18: DARQUEA ANDRES | N18: 58.896 | O18: 58.896
B19: 12 | C19: J214 | D19: GUERRA PATRICIA | F19: 17.92 | G19: 21.76 | J19: 16 | O19: 55.68
B20: 13 | C20: A021 | D20: ALVEAR JUAN CARLOS | G20: 55.04 | O20: 55.04
B21: 14 | C21: A315 | D21: RUBIO LUIS | F21: 53.76 | O21: 53.76
B22: 15 | C22: A311 | D22: CANGAS GUILLERMO | J22: 53.76 | O22: 53.76
B23: 16 | C23: A316 | D23: CONTRERAS JONATHAN | G23: 52.288 | O23: 52.288
B24: 17 | C24: A323 | D24: GONZALES MÓNICA | F24: 51.072 | O24: 51.072
B25: 18 | C25: A322 | D25: TOVAR DANIELA | F25: 48.384 | O25: 48.384
B26: 19 | C26: A343 | D26: MENA JULIO | L26: 46.08 | O26: 46.08
B27: 20 | C27: I024 | D27: ALZAMORA ESTEBAN | G27: 44.032 | O27: 44.032
B28: 21 | C28: A359 | D28: ALEXIS PARREÑO | L28: 43.52 | O28: 43.52
B29: 22 | C29: J236 | D29: CALDERON JUAN JOSÉ | N29: 32.32 | O29: 32.32
B30: 23 | C30: A339 | D30: CORO JORGE | I30: 32 | O30: 32
B31: 24 | C31: A345 | D31: GUIDO VILLAMARIN | J31: 26.88 | O31: 26.88
B32: 25 | C32: J220 | D32: MONCAYO MONCAYO FERNANDO | G32: 25.6 | O32: 25.6
B33: 26 | C33: A010 | D33: GUSTAVO HIDALGO | J33: 25.536 | O33: 25.536
B34: 27 | C34: A327 | D34: NAVAS ALEJANDRA | G34: 24.32 | O34: 24.32
B35: 28 | C35: A324 | D35: MONCAYO CASTILLO CARLOS | F35: 24.32 | O35: 24.32
B36: 29 | C36: A352 | D36: NORA CEVALLOS | J36: 24.192 | O36: 24.192
B37: 30 | C37: J224 | D37: MOYA SALOMÉ | G37: 23.04 | O37: 23.04
B38: 31 | C38: I019 | D38: CASTILLO DAFNE | F38: 21.76 | O38: 21.76
B39: 32 | C39: J225 | D39: TOVAR FIDEL | G39: 20.48 | O39: 20.48
B40: 33 | C40: J218 | D40: FORERO TULASY | F40: 20.48 | O40: 20.48
B41: 34 | C41: A050 | D41: ALZAMORA MARÍA CECILIA | F41: 19.2 | O41: 19.2
B42: 35 | C42: M020 | D42: TORRES JONATHAN | G42: 17.92 | O42: 17.92
B43: 36 | C43: J080 | D43: MAHNKE LIESEL | G43: 16.64 | O43: 16.64
B44: 37 | C44: J212 | D44: CORREA JUAN MARTIN | F44: 16.64 | O44: 16.64
B45: 38 | C45: J222 | D45: DIAZ JOSE DAVID | G45: 15.36 | O45: 15.36
B46: 39 | C46: J221 | D46: CRESPO MARIA EMILIA | G46: 14.08 | O46: 14.08
B47: 40 | C47: A333 | D47: ALMEIDA PARDO HÉCTOR | G47: 12.8 | O47: 12.8
B48: 41 | C48: A330 | D48: TORO ZYTA | G48: 12.16 | O48: 12.16
B49: 42 | C49: A329 | D49: RACIBORSKA DOROTA | G49: 11.52 | O49: 11.52
L69: =IF(J69>=60,"CLASIFICADO A 60 Km LIBRE y 80 Km NOVICIO",IF(J69>=40,"CLASIFICADO A 40 Km LIBRE y 60 Km NOVICIO","")) -> 

Sheet PR JUVENIL (hidden)
B2: PUNTAJE ACUMULADO
B3: CATEGORÍA PROMOCIONAL JUVENIL
B5: PROMOCIONAL JUVENIL | E5: PUNTAJES
E6: 2016
C7: CODIGO | D7: JINETE | E7: I CHONE | F7: II CHONE | G7: III CHONE | H7: IV CHONE | I7: V CHONE | J7: VI CHONE | K7: VII CHONE | L7: VIII CHONE | M7: IX CHONE | N7: X CHONE | O7: ACUMULADO
B8: 1 | C8: J105 | D8: NOROÑA JORDAN | M8: 68.8 | O8: =SUM(E8:N8) -> 68.8
B9: 2 | C9: J040 | D9: GABRIEL DARQUEA | N9: 68.8 | O9: 68.8
B10: 3 | C10: J116 | D10: BARBARA ESPINOZA | N10: 65.36 | O10: 65.36
B11: 4 | C11: J115 | D11: JHON CANDELEJO | N11: 32 | O11: 32
B12: 5 | O12: 0
B13: 6 | O13: 0
B14: 7 | O14: 0
B15: 8 | O15: 0
B16: 9 | O16: 0
B17: 10 | O17: 0
B18: 11 | O18: 0
B19: 12 | O19: 0
B20: 13 | O20: =SUM(E20:N20) -> 0
B21: 14 | O21: 0
B22: 15 | O22: 0
B23: 16 | O23: 0
B24: 17 | O24: 0
B25: 18 | O25: 0
B26: 19 | O26: 0
B27: 20 | O27: 0
B28: 21 | O28: 0
B29: 22 | O29: 0
B30: 23 | O30: 0
L32: =IF(J32>=60,"CLASIFICADO A 60 Km LIBRE y 80 Km NOVICIO",IF(J32>=40,"CLASIFICADO A 40 Km LIBRE y 60 Km NOVICIO","")) -> 
L50: =IF(J50>=60,"CLASIFICADO A 60 Km LIBRE y 80 Km NOVICIO",IF(J50>=40,"CLASIFICADO A 40 Km LIBRE y 60 Km NOVICIO","")) -> 

Sheet PR MENORES (hidden)
B2: PUNTAJE ACUMULADO
B3: CATEGORÍA PROMOCIONAL MENORES
B5: PROMOCIONAL MENORES | E5: PUNTAJES
E6: 2016
C7: CODIGO | D7: JINETE | E7: I CHONE | F7: II CHONE | G7: III CHONE | H7: IV CHONE | I7: V CHONE | J7: VI CHONE | K7: VII CHONE | L7: VIII CHONE | M7: IX CHONE | N7: X CHONE | O7: ACUMULADO
B8: 1 | C8: M028 | D8: CORREA JUAN MARTIN | M8: 28.8 | N8: 32 | O8: =SUM(E8:N8) -> 60.8
B9: 2 | C9: M031 | D9: ESPINOZA NATALIA | I9: 58.176 | O9: =SUM(E9:N9) -> 58.176
B10: 3 | C10: I019 | D10: CASTILLO DAFNE | M10: 32 | O10: =SUM(E10:N10) -> 32
B11: 4 | C11: I044 | D11: MOYA MILENA | M11: 30.4 | O11: =SUM(E11:N11) -> 30.4
B12: 5 | O12: =SUM(E12:N12) -> 0
B13: 6 | O13: 0
B14: 7 | O14: 0
B15: 8 | O15: 0
B16: 9 | O16: 0
B17: 10 | O17: 0
B18: 11 | O18: 0
B19: 12 | O19: 0
B20: 13 | O20: 0
B21: 14 | O21: 0
B22: 15 | O22: 0
B23: 16 | O23: 0
B24: 17 | O24: 0
B25: 18 | O25: 0
B26: 19 | O26: 0
B27: 20 | O27: 0
B28: 21 | O28: 0
B29: 22 | O29: 0
B30: 23 | O30: 0
L32: =IF(J32>=60,"CLASIFICADO A 60 Km LIBRE y 80 Km NOVICIO",IF(J32>=40,"CLASIFICADO A 40 Km LIBRE y 60 Km NOVICIO","")) -> 
L50: =IF(J50>=60,"CLASIFICADO A 60 Km LIBRE y 80 Km NOVICIO",IF(J50>=40,"CLASIFICADO A 40 Km LIBRE y 60 Km NOVICIO","")) -> 

Sheet PR INFANTIL
B2: PUNTAJE ACUMULADO
B3: CATEGORÍA PROMOCIONAL INFANTIL
B5: PROMOCIONAL INFANTIL | E5: PUNTAJES
E6: 2018
C7: CODIGO | D7: JINETE | E7: I CHONE | F7: II CHONE | G7: III CHONE | H7: IV CHONE | I7: V CHONE | J7: VI CHONE | K7: VII CHONE | L7: VIII CHONE | M7: X CHONE | N7: XII CHONE | O7: ACUMULADO
B8: 1 | C8: J068 | D8: BARAHONA MARIA EMILIA | G8: 25.6 | I8: 68.8 | J8: 53.76 | L8: 51.2 | N8: 122.2 | O8: =SUM(E8:N8) -> 321.56
B9: 2 | C9: I050 | D9: NOBOA JULIAN | G9: 23.04 | I9: 32 | L9: 25.6 | O9: 80.64
B10: 3 | C10: J207 | D10: EMILIO DARQUEA | N10: 65.44 | O10: 65.44
B11: 4 | C11: I048 | D11: CARRERA CAMILA | F11: 25.6 | O11: 25.6
B12: 5 | C12: I049 | D12: ANDRADE FELIPE ANDRÉS | F12: 24.32 | O12: 24.32
B13: 6 | C13: I050 | D13: VERA RAFAELLA | G13: 24.32 | O13: 24.32
B14: 7 | C14: I053 | D14: OLIVO RAFAELA | I14: 16 | O14: 16
B15: 8 | C15: I052 | D15: BONILLA DANIELA | G15: 12.8 | O15: 12.8
B16: 9 | O16: =SUM(E16:N16) -> 0
B17: 10 | O17: 0
B18: 11 | O18: 0
B19: 12 | O19: 0
B20: 13 | O20: 0
B21: 14 | O21: 0
B22: 15 | O22: 0
B23: 16 | O23: 0
B24: 17 | O24: 0
B25: 18 | O25: 0
B26: 19 | O26: 0
B27: 20 | O27: 0
B28: 21 | O28: 0
B29: 22 | O29: 0
B30: 23 | O30: 0
L32: =IF(J32>=60,"CLASIFICADO A 60 Km LIBRE y 80 Km NOVICIO",IF(J32>=40,"CLASIFICADO A 40 Km LIBRE y 60 Km NOVICIO","")) -> 
L50: =IF(J50>=60,"CLASIFICADO A 60 Km LIBRE y 80 Km NOVICIO",IF(J50>=40,"CLASIFICADO A 40 Km LIBRE y 60 Km NOVICIO","")) -> 

Sheet PR GENERAL PREMIADA SOCIOS
B2: PUNTAJE ACUMULADO
B3: CATEGORÍA PROMOCIONAL GENERAL
B5: PROMOCIONAL GENERAL | E5: PUNTAJES
E6: 2018
C7: CODIGO | D7: JINETE | F7: II CHONE | G7: III CHONE | I7: V CHONE | J7: VI CHONE | L7: VIII CHONE | M7: X CHONE | N7: XII CHONE | O7: ACUMULADO
B8: 1 | C8: M028 | D8: MONCAYO CALERO FERNANDO | F8: 25.6 | G8: 58.48 | I8: 58.48 | L8: 48.64 | N8: 92.872 | O8: =SUM(E8:N8) -> 284.072
B9: 2 | C9: J233 | D9: LANAS EMILIO JOSE | J9: 15 | N9: 65.44 | O9: =SUM(E9:N9) -> 80.44
B10: 3 | C10: J234 | D10: LANAS JAIME | I10: 16 | N10: 62.168 | O10: =SUM(E10:N10) -> 78.168
B11: 4 | C11: A302 | D11: MOYA MIGUEL | N11: 65.44 | O11: =SUM(E11:N11) -> 65.44
B12: 5 | C12: A064 | D12: CASTILLO DIEGO | I12: 65.36 | O12: =SUM(E12:N12) -> 65.36
B13: 6 | C13: J214 | D13: GUERRA PATRICIA | F13: 17.92 | G13: 21.76 | J13: 16 | O13: =SUM(E13:N13) -> 55.68
B14: 7 | C14: J224 | D14: MOYA SALOMÉ | G14: 23.04 | O14: =SUM(E14:N14) -> 23.04
B15: 8 | C15: I019 | D15: CASTILLO DAFNE | F15: 21.76 | O15: =SUM(E15:N15) -> 21.76
B16: 9 | C16: A333 | D16: ALMEIDA PARDO HÉCTOR | G16: 12.8 | O16: =SUM(E16:N16) -> 12.8
B17: 10 | O17: =SUM(E17:N17) -> 0
B18: 11 | O18: =SUM(E18:N18) -> 0
B19: 12 | O19: =SUM(E19:N19) -> 0
B20: 13 | O20: =SUM(E20:N20) -> 0
B21: 14 | O21: =SUM(E21:N21) -> 0
B22: 15 | O22: =SUM(E22:N22) -> 0
B23: 16 | O23: =SUM(E23:N23) -> 0
B24: 17 | O24: =SUM(E24:N24) -> 0
B25: 18 | O25: =SUM(E25:N25) -> 0
B26: 19 | O26: =SUM(E26:N26) -> 0
B27: 20 | O27: =SUM(E27:N27) -> 0
B28: 21 | O28: =SUM(E28:N28) -> 0
B29: 22 | O29: =SUM(E29:N29) -> 0
B30: 23 | O30: =SUM(E30:N30) -> 0
B31: 24 | O31: =SUM(E31:N31) -> 0
B32: 25 | O32: =SUM(E32:N32) -> 0
B33: 26 | O33: =SUM(E33:N33) -> 0
B34: 27 | O34: =SUM(E34:N34) -> 0
B35: 28 | O35: =SUM(E35:N35) -> 0
B36: 29 | O36: =SUM(E36:N36) -> 0
B37: 30 | O37: =SUM(E37:N37) -> 0
B38: 31 | O38: =SUM(E38:N38) -> 0
B39: 32 | O39: =SUM(E39:N39) -> 0
B40: 33 | O40: =SUM(E40:N40) -> 0
B41: 34 | O41: =SUM(E41:N41) -> 0
B42: 35 | O42: =SUM(E42:N42) -> 0
B43: 36 | O43: =SUM(E43:N43) -> 0
B44: 37 | O44: =SUM(E44:N44) -> 0
B45: 38 | O45: =SUM(E45:N45) -> 0
B46: 39 | O46: =SUM(E46:N46) -> 0
B47: 40 | O47: =SUM(E47:N47) -> 0
B48: 41
B49: 42
L69: =IF(J69>=60,"CLASIFICADO A 60 Km LIBRE y 80 Km NOVICIO",IF(J69>=40,"CLASIFICADO A 40 Km LIBRE y 60 Km NOVICIO","")) -> 

Sheet PR INFANTIL PREMIADA SOCIOS
B2: PUNTAJE ACUMULADO
B3: CATEGORÍA PROMOCIONAL INFANTIL
B5: PROMOCIONAL INFANTIL | E5: PUNTAJES
E6: 2018
C7: CODIGO | D7: JINETE | E7: I CHONE | F7: II CHONE | G7: III CHONE | H7: IV CHONE | I7: V CHONE | J7: VI CHONE | K7: VII CHONE | L7: VIII CHONE | M7: X CHONE | N7: XII CHONE | O7: ACUMULADO
B8: 1 | C8: J068 | D8: BARAHONA MARIA EMILIA | G8: 25.6 | I8: 68.8 | J8: 53.76 | L8: 51.2 | N8: 122.2 | O8: =SUM(E8:N8) -> 321.56
B9: 2 | C9: J207 | D9: EMILIO DARQUEA | N9: 65.44 | O9: =SUM(E9:N9) -> 65.44
B10: 3 | O10: =SUM(E10:N10) -> 0
B11: 4 | O11: 0
B12: 5 | O12: 0
B13: 6 | O13: 0
B14: 7 | O14: 0
B15: 8 | O15: 0
B16: 9 | O16: 0
B17: 10 | O17: 0
B18: 11 | O18: 0
B19: 12 | O19: 0
B20: 13 | O20: 0
B21: 14 | O21: 0
B22: 15 | O22: 0
B23: 16 | O23: 0
B24: 17 | O24: 0
B25: 18 | O25: 0
B26: 19 | O26: 0
B27: 20 | O27: 0
B28: 21 | O28: 0
B29: 22 | O29: 0
B30: 23 | O30: 0
L32: =IF(J32>=60,"CLASIFICADO A 60 Km LIBRE y 80 Km NOVICIO",IF(J32>=40,"CLASIFICADO A 40 Km LIBRE y 60 Km NOVICIO","")) -> 
L50: =IF(J50>=60,"CLASIFICADO A 60 Km LIBRE y 80 Km NOVICIO",IF(J50>=40,"CLASIFICADO A 40 Km LIBRE y 60 Km NOVICIO","")) -> 

Sheet PR ADULTO-MENOR (hidden)
B2: PUNTAJE ACUMULADO
B3: CATEGORÍA PROMOCIONAL ADULTO/MENOR
B5: BINOMIOS ABIERTA | E5: PUNTAJES
E6: 2016
C7: MENOR | D7: ADULTOS | E7: I CHONE | F7: II CHONE | G7: III CHONE | H7: IV CHONE | I7: V CHONE | J7: VI CHONE | K7: VII CHONE | L7: VIII CHONE | M7: IX CHONE | N7: X CHONE | O7: ACUMULADO
B8: 1 | C8: CASTILLO DAFNE | O8: 64.64
B9: 2 | C9: SERRANO OLIVIA | E9: 32.48 | I9: 30.704 | O9: =SUM(E9:N9) -> 63.184
B10: 3 | C10: JARA RAFAELA | I10: 32.32 | O10: 32.32
B11: 4 | C11: MOYA MARTINA | N11: 32 | O11: 32
B12: 5 | C12: CORREA DAVID | E12: 29.232 | O12: 29.232
B13: 6 | C13: DARQUEA EMILIO | I13: 29.088 | O13: 29.088
B14: 7 | C14: DIAZ DAIRA | E14: 27.608 | O14: 27.608
B15: 8 | C15: MOYA MILENA | E15: 21.112 | O15: 21.112
B16: 9 | O16: =SUM(E16:N16) -> 0
B17: 10 | O17: 0
B18: 11 | O18: 0
B19: 12 | O19: 0
B20: 13 | O20: 0
B21: 14 | O21: 0
B22: 15 | O22: 0
B23: 16 | O23: 0
B24: 17 | O24: 0
B25: 18 | O25: 0
B26: 19 | O26: 0
B27: 20 | O27: 0
B28: 21 | O28: 0
B29: 22 | O29: 0
B30: 23 | O30: 0
B31: 24 | O31: 0
B32: 25 | O32: 0
B33: 26 | O33: 0
B34: 27 | O34: 0
B35: 28 | O35: 0
B36: 29 | O36: 0
B37: 30 | O37: 0
B38: 31 | O38: 0
B39: 32 | O39: 0
B40: 33 | O40: 0
B41: 34 | O41: 0
B42: 35 | O42: 0
B43: 36 | O43: 0
B44: 37 | O44: 0
B45: 38 | O45: 0
B46: 39 | O46: 0
B47: 40 | O47: 0
B48: 41 | O48: 0
B49: 42 | O49: 0
B50: 43 | O50: 0
B51: 44 | O51: 0
B52: 45 | O52: 0
B53: 46 | O53: 0
B54: 47 | O54: 0
B55: 48 | O55: 0
B56: 49 | O56: 0
B57: 50 | O57: 0
B58: 51 | O58: 0
B59: 52 | O59: 0
B60: 53 | O60: 0
B61: 54 | O61: 0
B62: 55 | O62: 0
B63: 56 | O63: 0
B64: 57 | O64: 0
B65: 58 | O65: 0
B66: 59 | O66: =SUM(E66:N66) -> 0
B67: 60 | O67: 0
B68: 61 | O68: 0
B69: 62 | O69: 0
B70: 63 | O70: 0
B71: 64 | O71: 0
B72: 65 | O72: 0
B73: 66 | O73: 0
B74: 67 | O74: =SUM(E74:N74) -> 0
B75: 68 | O75: 0
B76: 69 | O76: 0
B77: 70 | O77: 0
B78: 71 | O78: 0
B79: 72 | O79: 0
B80: 73 | O80: 0
B81: 74 | O81: 0
B82: 75 | O82: 0
B83: 76 | O83: 0
B84: 77 | O84: 0
B85: 78 | O85: 0
B86: 79 | O86: 0
B87: 80 | O87: 0
B88: 81 | O88: 0
B89: 82 | O89: 0
B90: 83 | O90: 0
B91: 84 | O91: 0
B92: 85 | O92: 0
B93: 86 | O93: 0
B94: 87 | O94: 0
B95: 88 | O95: 0
B96: 89 | O96: 0
B97: 90 | O97: 0
B98: 91 | O98: 0
B99: 92 | O99: 0
B100: 93 | O100: 0
B101: 94 | O101: 0
B102: 95 | O102: 0
B103: 96 | O103: 0
B104: 97 | O104: 0
B105: 98 | O105: 0
B106: 99 | O106: 0
B107: 100 | O107: 0
B108: 101 | O108: 0
B109: 102 | O109: 0
B110: 103 | O110: 0
B111: 104 | O111: 0
B112: 105 | O112: 0
B113: 106 | O113: 0
B114: 107 | O114: 0
B115: 108 | O115: 0
B116: 109 | O116: 0
B117: 110 | O117: 0
B118: 111 | O118: 0
B119: 112 | O119: 0
B120: 113 | O120: 0
B121: 114 | O121: 0
B122: 115 | O122: 0
B123: 116 | O123: 0
B124: 117 | O124: 0
B125: 118 | O125: 0
B126: 119 | O126: 0
B127: 120 | O127: 0
B128: 121 | O128: 0
B129: 122 | O129: 0
B130: 123 | O130: 0
B131: 124 | O131: 0
B132: 125 | O132: 0
B133: 126 | O133: 0
B134: 127 | O134: 0
B135: 128 | O135: 0
B136: 129 | O136: 0
B137: 130 | O137: 0
B138: 131 | O138: =SUM(E138:N138) -> 0
B139: 132 | O139: 0
B140: 133 | O140: 0
B141: 134 | O141: 0
B142: 135 | O142: 0
B143: 136 | O143: 0
B144: 137 | O144: 0
B145: 138 | O145: 0
L165: =IF(J165>=60,"CLASIFICADO A 60 Km LIBRE y 80 Km NOVICIO",IF(J165>=40,"CLASIFICADO A 40 Km LIBRE y 60 Km NOVICIO","")) -> 
